Workbook

Sheet Инструкция
AA1: (требуется обновление)
B2: ="Код отчёта: " & GetCode() -> Код отчёта: 46TE.STX
B3: ="Версия " & GetVersion() -> Версия 6.0
B5: Форма 46 - Сведения о полезном отпуске (продаже) тепловой энергии отдельным категориям потребителей
E7: • На рабочем месте должен быть установлен MS Office 2003 SP3, 2007 SP3, 2010, 2013, 2016, 2019 с полной версией MS Excel • Макросы во время работы должны быть включены (!) • Для корректной работы отчёта требуется выбрать низкий уровень безопасности (В меню MS Excel 2003: Сервис | Макрос | Безопасность | выбрать пункт «Низкая безопасность» | OK) (В меню MS Excel 2007/2010/2013/2016/2019: Параметры Excel | Центр управления безопасностью | Параметры центра управления безопасностью | Параметры макросов | Включить все макросы | ОК) • Если Вы работаете в табличном процессоре MS Excel 2007 и выше, то можете использовать для работы формат XLSB (Двоичная книга Excel). При работе в формате XLSB заметно быстрее происходит сохранение файла, а также уменьшается размер по сравнению с форматами XLS и XLSM • Не рекомендуется снимать защиту с листов и каким-либо образом модифицировать защищаемые формулы и расчётные поля, в противном случае, отчёт будет отклонён системой • При сохранении не следует выбирать формат XLSX (Книга Excel), так как в указанном формате макросы, необходимые для работы отчёта, безвозвратно удаляются
E21: A | F21: - предназначенные для заполнения | O21: A | P21: - ссылки и автозаполняемые поля
E22: A | F22: - с формулами и константами | O22: A | P22: - обязательные для заполнения
E35: Если в предложенном Вам списке необходимая организация, МР/МО отсутствуют, обновите реестры с помощью кнопок В результате синхронизации с базой данных список организаций (МР/МО) будет заменён актуальным (механизм синхронизации требует подключения к сети Интернет и основан на использовании протокола HTTPS (TCP порт 443)) Если после обновления Вам не удалось найти необходимую организацию в списке, обратитесь к ответственному за поддержание реестра Вашего региона.
E41: Адрес сервера ЕИАС для запроса данных: | R41: https://eias.ru
E46: • При сохранении файла осуществляется проверка корректности данных, в том числе на наличие значений в ячейках, обязательных для заполнения • Если какая-то ячейка не удовлетворяет условию проверки, на лист «Проверка» добавляется гиперссылка на данную ячейку и указывается причина ошибки • В колонке «Статус» для каждого сообщения возможны 2 значения: ошибка и предупреждение • При наличии сообщений со статусом «Ошибка» файл будет отклонён системой и не будет загружен в хранилище данных, сообщения со статусом «Предупреждение» носят информационный характер, и такой отчёт будет принят системой
E59: Консультации: | K59: Обратиться за помощью
E60: Дистрибутивы: | K60: Перейти
E77: Сопровождение: | K77: Обратиться за помощью
E78: Отчётные формы: | K78: Перейти к разделу
E79: Хранилище документов: | K79: Руководство по загрузке документов
E93: При наличии подключения к Интернет, можно автоматически проверять наличие доступных обновлений. Выберите способ оповещения о наличии обновлений для отчёта:
F95: проверять доступные обновления (рекомендуется) | AA95: y
F97: никогда не проверять наличие обновлений (не рекомендуется)
E103: Использовать прокси-сервер для запроса обновлений | R103: нет
E104: Адрес прокси-сервера
E105: Порт

Sheet modInstruction (hidden)

Sheet TECHSHEET (hidden)
A1: Алтайский край | B1: RU22 | C1: Алтайский край | E1: XML_RST_HEAT_LIST_ORG_TAG_NAMES | G1: YES_NO | I1: DNS | K1: MONTH_LIST | N1: PROTECT_MARKER | P1: PERIOD | S1: konuhov_mv | T1: LOGIN
A2: Амурская область | B2: RU28 | C2: Амурская область | E2: RST_ORG_ID | G2: да | I2: =USE_DNS_SERVICE -> https://eias.ru | K2: Январь | L2: 1 | N2: FEDERAL.2022 | P2: =YEAR -> 2022 | T2: PASSWORD
A3: Архангельская область | B3: RU29 | C3: Архангельская область | E3: NMBR | G3: нет | K3: Февраль | L3: 2 | S3: MD5 | T3: ATH_SCHEME
A4: Астраханская область | B4: RU30 | C4: Астраханская область | E4: MR | K4: Март | L4: 3 | P4: Организация | S4: NO | T4: RETAIN_PASSWORD
A5: Белгородская область | B5: RU31 | C5: Белгородская область | E5: MO | I5: XML_MR_MO_OKTMO_LIST_TAG_NAMES | K5: Апрель | L5: 4 | P5: ="01.01." & PERIOD -> 01.01.2022 | T5: SESSION_ID
A6: Брянская область | B6: RU32 | C6: Брянская область | E6: OKTMO | G6: HEATING_PERIOD | I6: NSRF | K6: Май | L6: 5 | P6: ="31.12." & PERIOD -> 31.12.2022 | S6: 70:75:68:40:110:42:79:109:123:111:44:77:123:135:96:58:80 | T6: OBFUSCATED_PASSWORD
A7: Владимирская область | B7: RU33 | C7: Владимирская область | E7: INN | G7: отопительный | I7: MR_NAME | K7: Июнь | L7: 6
A8: Волгоградская область | B8: RU34 | C8: Волгоградская область | E8: KPP | G8: неотопительный | I8: OKTMO_MR_NAME | K8: Июль | L8: 7 | P8: Виды деятельности
A9: Вологодская область | B9: RU35 | C9: Вологодская область | E9: ORG | G9: неотопительный (только ГВС) | I9: MO_NAME | K9: Август | L9: 8 | P9: ="01.01." & PERIOD -> 01.01.2022
A10: Воронежская область | B10: RU36 | C10: Воронежская область | E10: VDET | G10: неотопительный (только СН) | I10: OKTMO_NAME | K10: Сентябрь | L10: 9 | P10: ="31.12." & PERIOD -> 31.12.2022
A11: г. Москва | B11: RU77 | C11: Москва | E11: FIL | G11: итог за год | I11: TYPE | K11: Октябрь | L11: 10
A12: г. Байконур | B12: RU00 | E12: TF | K12: Ноябрь | L12: 11 | P12: Территории
A13: г. Санкт-Петербург | B13: RU78 | C13: Cанкт-Петербург | E13: ETO_STATUS | K13: Декабрь | L13: 12 | P13: ="01.01." & PERIOD -> 01.01.2022
A14: г. Севастополь | B14: RU92 | C14: Севастополь | E14: OKTMO_ID | G14: TAX_SYSTEM_LIST | I14: SAX_PARSER_FEATURE | K14: Год | L14: 13 | P14: ="31.12." & PERIOD -> 31.12.2022
A15: Еврейская автономная область | B15: RU79 | C15: Еврейская автономная область | E15: INN_ID | G15: ОСН | I15: YES
A16: Забайкальский край | B16: RU75 | C16: Забайкальский край | E16: KPP_ID | G16: УСН
A17: Ивановская область | B17: RU37 | C17: Ивановская область | E17: VDET_ID | G17: ПСН
A18: Иркутская область | B18: RU38 | C18: Иркутская область | E18: FIL_ID | G18: ЕНВД | I18: XML_ORG_LIST_TAG_NAMES | K18: REPORT_MODE_LIST
A19: Кабардино-Балкарская республика | B19: RU07 | C19: Республика Кабардино-Балкария | G19: ЕСХН | I19: REGION_NAME | K19: REG | L19: Организация оказывает услуги по тарифам, подлежащим государственному регулированию
A20: Калининградская область | B20: RU39 | C20: Калининградская область | G20: налогообложение казённых учреждений | I20: MR_NAME | K20: SEMIREG | L20: Организация оказывает услуги по тарифам, подлежащим государственному регулированию, а также по ценам, определённым соглашением сторон договора теплоснабжения или договора поставки тепловой энергии (мощности) (п. 5(1) Основ ценообразования ПП от 22.10.2012 N 1075)
A21: Калужская область | B21: RU40 | C21: Калужская область | E21: XML_UNREG_HEAT_LIST_ORG_TAG_NAMES | I21: OKTMR_NAME | K21: UNREG | L21: Организация оказывает услуги только по ценам, определённым соглашением сторон договора теплоснабжения или договора поставки тепловой энергии (мощности) (п. 5(1) Основ ценообразования ПП от 22.10.2012 N 1075)
A22: Камчатский край | B22: RU41 | C22: Камчатский край | E22: RST_ORG_ID | I22: MO_NAME | K22: PRICEZONE | L22: Организация оказывает услуги в ценовой зоне теплоснабжения
A23: Карачаево-Черкесская республика | B23: RU09 | C23: Республика Карачаево-Черкессия | E23: NMBR | G23: VDET_LIST | I23: OKTMO_NAME | K23: ILLEGAL | L23: Организация оказывает услуги без тарифов, подлежащим государственному регулированию (эксплуатация имущественного комплекса до утверждения тарифов в установленном законодательством порядке)
A24: Кемеровская область | B24: RU42 | C24: Кемеровская область | E24: MR | G24: Комбинированное производство, более 25 МВт | I24: RST_ORG_ID
A25: Кировская область | B25: RU43 | C25: Кировская область | E25: MO | G25: Комбинированное производство, более 25 МВт :: Передача | I25: ORG_NAME
A26: Костромская область | B26: RU44 | C26: Костромская область | E26: OKTMO | G26: Комбинированное производство, более 25 МВт :: Передача :: Сбыт | I26: INN_NAME
A27: Краснодарский край | B27: RU23 | C27: Краснодарский край | E27: INN | G27: Комбинированное производство, более 25 МВт :: Сбыт | I27: KPP_NAME
A28: Красноярский край | B28: RU24 | C28: Красноярский край | E28: KPP | G28: Комбинированное производство, менее 25 МВт | I28: VDET_NAME
A29: Курганская область | B29: RU45 | C29: Курганская область | E29: ORG | G29: Комбинированное производство, менее 25 МВт :: Передача | I29: VDET_NAME_LIST
A30: Курская область | B30: RU46 | C30: Курская область | E30: VDET | G30: Комбинированное производство, менее 25 МВт :: Передача :: Сбыт | I30: VDET_FULL_NAME_LIST
A31: Ленинградская область | B31: RU47 | C31: Ленинградская область | E31: FIL | G31: Комбинированное производство, менее 25 МВт :: Сбыт | I31: ORG_START_DATE
A32: Липецкая область | B32: RU48 | C32: Липецкая область | E32: TF | G32: Некомбинированное производство | I32: ORG_END_DATE
A33: Магаданская область | B33: RU49 | C33: Магаданская область | E33: ETO_STATUS | G33: Некомбинированное производство :: Передача | I33: VDET_START_DATE
A34: Московская область | B34: RU50 | C34: Московская область | E34: OKTMO_ID | G34: Некомбинированное производство :: Передача :: Сбыт | I34: VDET_END_DATE
A35: Мурманская область | B35: RU51 | C35: Мурманская область | E35: INN_ID | G35: Некомбинированное производство :: Сбыт
A36: Ненецкий автономный округ | B36: RU83 | C36: Ненецкий автономный округ | E36: KPP_ID | G36: Передача :: Сбыт
A37: Нижегородская область | B37: RU52 | C37: Нижегородская область | E37: VDET_ID | I37: JUSTIFICATION_SAMPLE_URL
A38: Новгородская область | B38: RU53 | C38: Новгородская область | E38: FIL_ID | I38: http://eias.fas.gov.ru/files/46te.stx.justification.rtf
A39: Новосибирская область | B39: RU54 | C39: Новосибирская область | G39: TF_LIST
A40: Омская область | B40: RU55 | C40: Омская область | G40: одноставочный
A41: Оренбургская область | B41: RU56 | C41: Оренбургская область | E41: XML_PRICEZONE_HEAT_LIST_ORG_TAG_NAMES | G41: двухставочный | I41: XML_AUTHORISATION_TAG_NAMES
A42: Орловская область | B42: RU57 | C42: Орловская область | E42: RST_ORG_ID | I42: L1
A43: Пензенская область | B43: RU58 | C43: Пензенская область | E43: NMBR | I43: L2
A44: Пермский край | B44: RU59 | C44: Пермский край | E44: MR
A45: Приморский край | B45: RU25 | C45: Приморский край | E45: MO
A46: Псковская область | B46: RU60 | C46: Псковская область | E46: OKTMO | I46: XML_OKTMO_HISTORY_LIST_TAG_NAMES
A47: Республика Адыгея | B47: RU01 | C47: Республика Адыгея | E47: INN | I47: MR_NAME
A48: Республика Алтай | B48: RU04 | C48: Республика Алтай | E48: KPP | I48: MO_NAME
A49: Республика Башкортостан | B49: RU02 | C49: Республика Башкортостан | E49: ORG | I49: OKTMO_NAME
A50: Республика Бурятия | B50: RU03 | C50: Республика Бурятия | E50: VDET | I50: TYPE
A51: Республика Дагестан | B51: RU05 | C51: Республика Дагестан | E51: FIL
A52: Республика Ингушетия | B52: RU06 | C52: Республика Ингушетия | E52: TF
A53: Республика Калмыкия | B53: RU08 | C53: Республика Калмыкия | E53: ETO_STATUS
A54: Республика Карелия | B54: RU10 | C54: Республика Карелия | E54: OKTMO_ID
A55: Республика Коми | B55: RU11 | C55: Республика Коми | E55: INN_ID
A56: Республика Крым | B56: RU82 | C56: Крым | E56: KPP_ID
A57: Республика Марий Эл | B57: RU12 | C57: Республика Марий Эл | E57: VDET_ID
A58: Республика Мордовия | B58: RU13 | C58: Республика Мордовия | E58: FIL_ID
A59: Республика Саха (Якутия) | B59: RU14 | C59: Республика Саха (Якутия)
A60: Республика Северная Осетия-Алания | B60: RU15 | C60: Республика Северная Осетия (Алания)
A61: Республика Татарстан | B61: RU16 | C61: Республика Татарстан | E61: XML_DICTIONARIES_TAG_NAMES
A62: Республика Тыва | B62: RU17 | C62: Республика Тыва (Тува) | E62: DIC_NAME
A63: Республика Хакасия | B63: RU19 | C63: Республика Хакасия | E63: DIC_VALUE
A64: Ростовская область | B64: RU61 | C64: Ростовская область | E64: YEAR_NAME
A65: Рязанская область | B65: RU62 | C65: Рязанская область | E65: MONTH_NAME
A66: Самарская область | B66: RU63 | C66: Самарская область
A67: Саратовская область | B67: RU64 | C67: Саратовская область
A68: Сахалинская область | B68: RU65 | C68: Сахалинская область | E68: XML_RPT_STATISTICS_TAG_NAMES
A69: Свердловская область | B69: RU66 | C69: Свердловская область | E69: REGION_ID
A70: Смоленская область | B70: RU67 | C70: Смоленская область | E70: OKTMO_ID
A71: Ставропольский край | B71: RU26 | C71: Ставропольский край | E71: INN_ID
A72: Тамбовская область | B72: RU68 | C72: Тамбовская область | E72: KPP_ID
A73: Тверская область | B73: RU69 | C73: Тверская область | E73: FIL_ID
A74: Томская область | B74: RU70 | C74: Томская область | E74: VDET_ID
A75: Тульская область | B75: RU71 | C75: Тульская область | E75: PRD2_NAME
A76: Тюменская область | B76: RU72 | C76: Тюменская область | E76: RPT_DATE
A77: Удмуртская республика | B77: RU18 | C77: Республика Удмуртия | E77: RPT_STATUS
A78: Ульяновская область | B78: RU73 | C78: Ульяновская область | E78: V_STEAM
A79: Хабаровский край | B79: RU27 | C79: Хабаровский край | E79: C_STEAM
A80: Ханты-Мансийский автономный округ | B80: RU86 | C80: Ханты-Мансийский автономный округ | E80: V_WATER
A81: Челябинская область | B81: RU74 | C81: Челябинская область | E81: C_WATER
A82: Чеченская республика | B82: RU20 | C82: Республика Чечня
A83: Чувашская республика | B83: RU21 | C83: Республика Чувашия
A84: Чукотский автономный округ | B84: RU87 | C84: Чукотский автономный округ | E84: XML_ACCESSIBILITY_LIST_ORG_TAG_NAMES
A85: Ямало-Ненецкий автономный округ | B85: RU89 | C85: Ямало-Ненецкий автономный округ | E85: INN_ID
A86: Ярославская область | B86: RU76 | C86: Ярославская область | E86: KPP_ID
E87: ACCESSIBILITY
E88: LEGAL_TARIFF_EXISTENCE

Sheet RST_LIST_ORG (hidden)
A1: RST_ORG_ID | B1: NMBR | C1: MR | D1: MO | E1: OKTMO | F1: INN | G1: KPP | H1: ORG | I1: VDET | J1: FIL | K1: TF | L1: ETO_STATUS | M1: OKTMO_ID | N1: INN_ID | O1: KPP_ID | P1: VDET_ID | Q1: FIL_ID
A2: 26358403 | B2: 1 | C2: город Нижний Новгород | D2: город Нижний Новгород | E2: 22701000 | F2: 5257052472 | G2: 525701001 | H2: АО "78 ДОК Н.М." | L2: нет | M2: 5137637 | N2: 5174632 | O2: 5431574 | Q2: 5412526
A3: 26358280 | B3: 2 | C3: город Арзамас | D3: город Арзамас | E3: 22703000 | F3: 5243001767 | G3: 525350001 | H3: АО "АМЗ" | L3: нет | M3: 5136408 | N3: 5272240 | O3: 5431571 | Q3: 5412526
A4: 26358279 | B4: 3 | C4: город Арзамас | D4: город Арзамас | E4: 22703000 | F4: 5243001742 | G4: 524301001 | H4: АО "АПЗ" | L4: нет | M4: 5136408 | N4: 5272239 | O4: 5431559 | Q4: 5412526
A5: 26358277 | B5: 4 | C5: город Арзамас | D5: город Арзамас | E5: 22703000 | F5: 5243000788 | G5: 524301001 | H5: АО "Арзамасская войлочная фабрика" | L5: нет | M5: 5136408 | N5: 5272238 | O5: 5431559 | Q5: 5412526
A6: 26951227 | B6: 5 | C6: город Нижний Новгород | D6: город Нижний Новгород | E6: 22701000 | F6: 5260005345 | G6: 526001001 | H6: АО "БРИДЖТАУН ЧАЙКА" | L6: нет | M6: 5137637 | N6: 5272322 | O6: 5424085 | Q6: 5412526
A7: 26373616 | B7: 6 | C7: город Выкса | D7: город Выкса | E7: 22715000 | F7: 5247004695 | G7: 524701001 | H7: АО "ВМЗ" | L7: нет | M7: 1894742789 | N7: 5272257 | O7: 5431563 | Q7: 5412526
A8: 26358464 | B8: 7 | C8: город Нижний Новгород | D8: город Нижний Новгород | E8: 22701000 | F8: 5260902190 | G8: 526001001 | H8: АО "ВОЛГА-ФЛОТ" | L8: нет | M8: 5137637 | N8: 5272338 | O8: 5424085 | Q8: 5412526
A9: 31314742 | B9: 8 | C9: город Выкса | D9: город Выкса | E9: 22715000 | F9: 5247055114 | G9: 524701001 | H9: АО "ВЫКСАТЕПЛОЭНЕРГО" | L9: нет | M9: 1894742789 | N9: 4620761327 | O9: 5431563 | Q9: 5412526
A10: 26373593 | B10: 9 | C10: Балахнинский муниципальный округ | D10: Балахнинский муниципальный округ | E10: 22505000 | F10: 5244009279 | G10: 524401001 | H10: АО "Волга" | L10: нет | M10: 5687589352 | N10: 5257011 | O10: 5431560 | Q10: 5412526
A11: 26358364 | B11: 10 | C11: Павловский муниципальный округ | D11: Павловский муниципальный округ | E11: 22542000 | F11: 5252000470 | G11: 525201001 | H11: АО "Гидроагрегат" | L11: нет | M11: 5678799700 | N11: 5272290 | O11: 5431569 | Q11: 5412526
A12: 26569426 | B12: 11 | C12: город Дзержинск | D12: город Дзержинск | E12: 22721000 | F12: 5249015251 | G12: 524901001 | H12: АО "ДПО "Пластик" | L12: нет | M12: 5136353 | N12: 5257022 | O12: 5431565 | Q12: 5412526
A13: 26358272 | B13: 12 | C13: город Шахунья | D13: город Шахунья | E13: 22758000 | F13: 5239006515 | G13: 523901001 | H13: АО "ДРСП" | L13: нет | M13: 1902070491 | N13: 5272232 | O13: 5431557 | Q13: 5412526
A14: 31258691 | B14: 13 | C14: город Бор | D14: город Бор | E14: 22712000 | F14: 5246038236 | G14: 524601001 | H14: АО "ЖКХ "КАЛИКИНСКОЕ" | L14: нет | M14: 1894698781 | N14: 883807060 | O14: 5431562 | Q14: 5412526
A15: 31063349 | B15: 14 | C15: город Нижний Новгород | D15: город Нижний Новгород | E15: 22701000 | F15: 5263125030 | G15: 526301001 | H15: АО "ЗАВОД "ЭЛЕКТРОМАШ" | L15: нет | M15: 5137637 | N15: 4103682243 | O15: 5431582 | Q15: 5412526
A16: 26358397 | B16: 15 | C16: город Нижний Новгород | D16: город Нижний Новгород | E16: 22701000 | F16: 5257005049 | G16: 525701001 | H16: АО "ЗАВОД КРАСНЫЙ ЯКОРЬ" | L16: нет | M16: 5137637 | N16: 5257035 | O16: 5431574 | Q16: 5412526
A17: 26358385 | B17: 16 | C17: город Нижний Новгород | D17: город Нижний Новгород | E17: 22701000 | F17: 5256045754 | G17: 525601001 | H17: АО "МАНН" | L17: нет | M17: 5137637 | N17: 5161395 | O17: 5431573 | Q17: 5412526
A18: 26358393 | B18: 17 | C18: город Нижний Новгород | D18: город Нижний Новгород | E18: 22701000 | F18: 5257003490 | G18: 525701001 | H18: АО "МЕЛЬИНВЕСТ" | L18: нет | M18: 5137637 | N18: 5161360 | O18: 5431574 | Q18: 5412526
A19: 26358270 | B19: 18 | C19: город Шахунья | D19: город Шахунья | E19: 22758000 | F19: 5239001108 | G19: 523901001 | H19: АО "Молоко" | L19: нет | M19: 1902070491 | N19: 5272230 | O19: 5431557 | Q19: 5412526
A20: 26555642 | B20: 19 | C20: город Нижний Новгород | D20: город Нижний Новгород | E20: 22701000 | F20: 5257001277 | G20: 525701001 | H20: АО "НАС" | L20: нет | M20: 5137637 | N20: 5174637 | O20: 5431574 | Q20: 5412526
A21: 30844713 | B21: 20 | C21: город Нижний Новгород | D21: город Нижний Новгород | E21: 22701000 | F21: 5259113339 | G21: 525901001 | H21: АО "НЗ 70-ЛЕТИЯ ПОБЕДЫ" | L21: нет | M21: 5137637 | N21: 2800766764 | O21: 5431578 | Q21: 5412526
A22: 26358179 | B22: 21 | C22: Навашинский | D22: Навашинский | E22: 22730000 | F22: 5223000035 | G22: 522301001 | H22: АО "НЗСМ" | L22: нет | M22: 2322898925 | N22: 5159009 | O22: 5431539 | Q22: 5412526
A23: 26358394 | B23: 22 | C23: город Нижний Новгород | D23: город Нижний Новгород | E23: 22701000 | F23: 5257003806 | G23: 525701001 | H23: АО "НМЖК" | L23: нет | M23: 5137637 | N23: 5161389 | O23: 5431574 | Q23: 5412526
A24: 26358469 | B24: 23 | C24: город Нижний Новгород | D24: город Нижний Новгород | E24: 22701000 | F24: 5261077695 | G24: 526101001 | H24: АО "ННПО имени М.В. Фрунзе" | L24: нет | M24: 5137637 | N24: 1834966861 | O24: 5431579 | Q24: 5412526
A25: 31023931 | B25: 24 | C25: Балахнинский муниципальный округ | D25: Балахнинский муниципальный округ | E25: 22505000 | F25: 5260267654 | G25: 524443001 | H25: АО "НОКК" (Балахнинский филиал) | L25: нет | M25: 5687589352 | N25: 839812829 | O25: 3517869861 | Q25: 5412526
A26: 27566839 | B26: 25 | C26: Богородский муниципальный округ | D26: Богородский муниципальный округ | E26: 22507000 | F26: 5260267654 | G26: 524543001 | H26: АО "НОКК" (Богородский филиал) | L26: нет | M26: 5675664280 | N26: 839812829 | O26: 839812827 | Q26: 5412526
A27: 27566839 | B27: 26 | C27: город Дзержинск | D27: город Дзержинск | E27: 22721000 | F27: 5260267654 | G27: 524543001 | H27: АО "НОКК" (Богородский филиал) | L27: нет | M27: 5136353 | N27: 839812829 | O27: 839812827 | Q27: 5412526
A28: 27566839 | B28: 27 | C28: город Нижний Новгород | D28: город Нижний Новгород | E28: 22701000 | F28: 5260267654 | G28: 524543001 | H28: АО "НОКК" (Богородский филиал) | L28: нет | M28: 5137637 | N28: 839812829 | O28: 839812827 | Q28: 5412526
A29: 31538730 | B29: 28 | C29: Ветлужский муниципальный район | D29: Город Ветлуга | E29: 22618101 | F29: 5260267654 | G29: 523543002 | H29: АО "НОКК" (Ветлужский филиал) | L29: нет | M29: 56405478 | N29: 839812829 | O29: 6168333539 | Q29: 5412526
A30: 31538777 | B30: 29 | C30: Володарский муниципальный район | D30: Город Володарск | E30: 22631103 | F30: 5260267654 | G30: 524943001 | H30: АО "НОКК" (Володарский филиал) | L30: нет | M30: 5136439 | N30: 839812829 | O30: 6168336822 | Q30: 5412526
A31: 31538777 | B31: 30 | C31: Володарский муниципальный район | D31: Рабочий поселок Ильиногорск | E31: 22631160 | F31: 5260267654 | G31: 524943001 | H31: АО "НОКК" (Володарский филиал) | L31: нет | M31: 5136440 | N31: 839812829 | O31: 6168336822 | Q31: 5412526
A32: 31538777 | B32: 31 | C32: Володарский муниципальный район | D32: Рабочий поселок Фролищи | E32: 22631173 | F32: 5260267654 | G32: 524943001 | H32: АО "НОКК" (Володарский филиал) | L32: нет | M32: 5136442 | N32: 839812829 | O32: 6168336822 | Q32: 5412526
A33: 31538777 | B33: 32 | C33: Володарский муниципальный район | D33: Рабочий поселок Центральный | E33: 22631176 | F33: 5260267654 | G33: 524943001 | H33: АО "НОКК" (Володарский филиал) | L33: нет | M33: 5136443 | N33: 839812829 | O33: 6168336822 | Q33: 5412526
A34: 27968016 | B34: 33 | C34: Семеновский | D34: Семеновский | E34: 22737000 | F34: 5260267654 | G34: 522845001 | H34: АО "НОКК" (Семеновский филиал) | L34: нет | M34: 1900284181 | N34: 839812829 | O34: 1358895037 | Q34: 5412526
A35: 31171901 | B35: 34 | C35: Сеченовский муниципальный район | D35: Верхнеталызинский сельсовет | E35: 22649416 | F35: 5260267654 | G35: 523043001 | H35: АО "НОКК" (Сеченовский филиал) | L35: нет | M35: 56405567 | N35: 839812829 | O35: 3959623213 | Q35: 5412526
A36: 31171901 | B36: 35 | C36: Сеченовский муниципальный район | D36: Мурзицкий сельсовет | E36: 22649440 | F36: 5260267654 | G36: 523043001 | H36: АО "НОКК" (Сеченовский филиал) | L36: нет | M36: 56405573 | N36: 839812829 | O36: 3959623213 | Q36: 5412526
A37: 31171901 | B37: 36 | C37: Сеченовский муниципальный район | D37: Сеченовский сельсовет | E37: 22649444 | F37: 5260267654 | G37: 523043001 | H37: АО "НОКК" (Сеченовский филиал) | L37: нет | M37: 5272400 | N37: 839812829 | O37: 3959623213 | Q37: 5412526
A38: 28007548 | B38: 37 | C38: город Шахунья | D38: город Шахунья | E38: 22758000 | F38: 5260267654 | G38: 523943001 | H38: АО "НОКК" (Шахунский филиал) | L38: нет | M38: 1902070491 | N38: 839812829 | O38: 1333672533 | Q38: 5412526
A39: 26358399 | B39: 38 | C39: город Нижний Новгород | D39: город Нижний Новгород | E39: 22701000 | F39: 5257005345 | G39: 525701001 | H39: АО "Нормаль" | L39: нет | M39: 5137637 | N39: 5161123 | O39: 5431574 | Q39: 5412526
A40: 26358419 | B40: 39 | C40: город Нижний Новгород | D40: город Нижний Новгород | E40: 22701000 | F40: 5259077666 | G40: 525350001 | H40: АО "ОКБМ Африкантов" | L40: нет | M40: 5137637 | N40: 5502209 | O40: 5431571 | Q40: 5412526
A41: 28502425 | B41: 40 | C41: Кстовский муниципальный район | D41: Город Кстово | E41: 22637101 | F41: 7725806898 | G41: 770101001 | H41: АО "ПГК" | L41: нет | M41: 5272375 | N41: 2237324962 | O41: 5416913 | Q41: 5412526
A42: 28502425 | B42: 41 | C42: Кстовский муниципальный район | D42: Кстовский муниципальный район | E42: 22637000 | F42: 7725806898 | G42: 770101001 | H42: АО "ПГК" | L42: нет | M42: 5136485 | N42: 2237324962 | O42: 5416913 | Q42: 5412526
A43: 26358454 | B43: 42 | C43: город Нижний Новгород | D43: город Нижний Новгород | E43: 22701000 | F43: 7705709543 | G43: 770501001 | H43: АО "ПЕРВАЯ ОБРАЗЦОВАЯ ТИПОГРАФИЯ" ФИЛИАЛ "НИЖПОЛИГРАФ" | L43: нет | M43: 5137637 | N43: 1072611669 | O43: 5431584 | Q43: 5412526
A44: 26555359 | B44: 43 | C44: ЗАТО город Саров | D44: ЗАТО город Саров | E44: 22704000 | F44: 5254082550 | G44: 525401001 | H44: АО "СГК" | L44: нет | M44: 5135818 | N44: 56519135 | O44: 5432118 | Q44: 5412526
A45: 26322331 | B45: 44 | C45: город Дзержинск | D45: город Дзержинск | E45: 22721000 | F45: 5249051203 | G45: 525350001 | H45: АО "СИБУР-НЕФТЕХИМ" | L45: нет | M45: 5136353 | N45: 5257023 | O45: 5431571 | Q45: 5412526
A46: 26555361 | B46: 45 | C46: ЗАТО город Саров | D46: ЗАТО город Саров | E46: 22704000 | F46: 5254082630 | G46: 525401001 | H46: АО "СТСК" | L46: нет | M46: 5135818 | N46: 56519136 | O46: 5432118 | Q46: 5412526
A47: 26358489 | B47: 46 | C47: город Нижний Новгород | D47: город Нижний Новгород | E47: 22701000 | F47: 5263024642 | G47: 526301001 | H47: АО "ТРАНС-СИГНАЛ" | L47: нет | M47: 5137637 | N47: 5257053 | O47: 5431582 | Q47: 5412526
A48: 26358408 | B48: 47 | C48: город Арзамас | D48: город Арзамас | E48: 22703000 | F48: 5257087027 | G48: 525701001 | H48: АО "Теплоэнерго" | L48: нет | M48: 5136408 | N48: 5226646 | O48: 5431574 | Q48: 5412526
A49: 26358408 | B49: 48 | C49: город Нижний Новгород | D49: город Нижний Новгород | E49: 22701000 | F49: 5257087027 | G49: 525701001 | H49: АО "Теплоэнерго" | L49: нет | M49: 5137637 | N49: 5226646 | O49: 5431574 | Q49: 5412526
A50: 26358408 | B50: 49 | C50: город Чкаловск | D50: город Чкаловск | E50: 22755000 | F50: 5257087027 | G50: 525701001 | H50: АО "Теплоэнерго" | L50: нет | M50: 2306736400 | N50: 5226646 | O50: 5431574 | Q50: 5412526
A51: 26358184 | B51: 50 | C51: город Первомайск | D51: город Первомайск | E51: 22734000 | F51: 5224001190 | G51: 522401001 | H51: АО "Транспневматика" | L51: нет | M51: 1728407209 | N51: 5161546 | O51: 5431540 | Q51: 5412526
A52: 27585148 | B52: 51 | C52: город Нижний Новгород | D52: город Нижний Новгород | E52: 22701000 | F52: 5262054490 | G52: 525601001 | H52: АО "ЭСК" | L52: нет | M52: 5137637 | N52: 820677904 | O52: 5431573 | Q52: 5412526
A53: 26358197 | B53: 52 | C53: Семеновский | D53: Семеновский | E53: 22737000 | F53: 5228001113 | G53: 522801001 | H53: АО «ХОХЛОМСКАЯ РОСПИСЬ» | L53: нет | M53: 1900284181 | N53: 5272200 | O53: 5431544 | Q53: 5412526
A54: 26358413 | B54: 53 | C54: город Нижний Новгород | D54: город Нижний Новгород | E54: 22701000 | F54: 5258100129 | G54: 525801001 | H54: АО НПП "Полет" | L54: нет | M54: 5137637 | N54: 1693580939 | O54: 5431576 | Q54: 5412526
A55: 26358409 | B55: 54 | C55: город Нижний Новгород | D55: город Нижний Новгород | E55: 22701000 | F55: 5258000011 | G55: 525801001 | H55: АО ПКО "Теплообменник" | L55: нет | M55: 5137637 | N55: 5161386 | O55: 5431576 | Q55: 5412526
A56: 26825363 | B56: 55 | C56: Богородский муниципальный округ | D56: Богородский муниципальный округ | E56: 22507000 | F56: 5243002464 | G56: 524502001 | H56: Богородский филиал ООО "Арзамасское ПО "Автопровод" | L56: нет | M56: 5675664280 | N56: 5272243 | O56: 669393547 | Q56: 5412526
A57: 26358190 | B57: 56 | C57: Перевозский | D57: Перевозский | E57: 22739000 | F57: 5225001122 | G57: 522501001 | H57: ГАПОУ "ПЕРЕВОЗСКИЙ СТРОИТЕЛЬНЫЙ КОЛЛЕДЖ" | L57: нет | M57: 3437705962 | N57: 5272193 | O57: 5431541 | Q57: 5412526
A58: 31253577 | B58: 57 | C58: Починковский муниципальный округ | D58: Починковский муниципальный округ | E58: 22546000 | F58: 5227001424 | G58: 522701001 | H58: ГБПОУ ПСХТ | L58: нет | M58: 5701634258 | N58: 4678803140 | O58: 5431543 | Q58: 5412526
A59: 26358225 | B59: 58 | C59: Спасский муниципальный район | D59: Спасский сельсовет | E59: 22651432 | F59: 5232001606 | G59: 523201001 | H59: ГБПОУ СПАССКИЙ АПТ | L59: нет | M59: 5272401 | N59: 5272211 | O59: 5431550 | Q59: 5412526
A60: 27980367 | B60: 59 | C60: Варнавинский муниципальный район | D60: Северный сельсовет | E60: 22615428 | F60: 5207002268 | G60: 520701001 | H60: ГБУ "Варнавинский ПНИ" | L60: нет | M60: 5272359 | N60: 1333670912 | O60: 5431525 | Q60: 5412526
A61: 26358119 | B61: 60 | C61: Володарский муниципальный район | D61: Рабочий поселок Решетиха | E61: 22631168 | F61: 5214003022 | G61: 521401001 | H61: ГБУ "Решетихинский ПНИ" | L61: нет | M61: 5136441 | N61: 5159026 | O61: 5431532 | Q61: 5412526
A62: 27579733 | B62: 61 | C62: город Дзержинск | D62: город Дзержинск | E62: 22721000 | F62: 5249050312 | G62: 524901001 | H62: ГБУ ОСРЦИ "Пушкино" | L62: нет | M62: 5136353 | N62: 907453169 | O62: 5431565 | Q62: 5412526
A63: 26358243 | B63: 62 | C63: Уренский муниципальный округ | D63: Уренский муниципальный округ | E63: 22554000 | F63: 5235001940 | G63: 523501001 | H63: ГБУ СРЦИ "КРАСНЫЙ ЯР" | L63: нет | M63: 5681195742 | N63: 5160911 | O63: 5431553 | Q63: 5412526
A64: 31036531 | B64: 63 | C64: город Нижний Новгород | D64: город Нижний Новгород | E64: 22701000 | F64: 5256026159 | G64: 525601001 | H64: ГБУ ССОН "АВТОЗАВОДСКИЙ ДОМ ДЛЯ ДЕТЕЙ "НАДЕЖДА" | L64: нет | M64: 5137637 | N64: 3566201232 | O64: 5431573 | Q64: 5412526
A65: 26555218 | B65: 64 | C65: город Бор | D65: город Бор | E65: 22712000 | F65: 5246010400 | G65: 524601001 | H65: ГБУЗ НО "КИСЕЛИХИНСКИЙ ОБЛАСТНОЙ ТЕРАПЕВТИЧЕСКИЙ ГОСПИТАЛЬ ДЛЯ ВЕТЕРАНОВ ВОЙН" | L65: нет | M65: 1894698781 | N65: 56472115 | O65: 5431562 | Q65: 5412526
A66: 26358374 | B66: 65 | C66: Павловский муниципальный округ | D66: Павловский муниципальный округ | E66: 22542000 | F66: 5252008631 | G66: 525201001 | H66: ГКОУ "ПАВЛОВСКИЙ САНАТОРНЫЙ ДЕТСКИЙ ДОМ" | L66: нет | M66: 5678799700 | N66: 5161472 | O66: 5431569 | Q66: 5412526
A67: 26808802 | B67: 66 | C67: Володарский муниципальный район | D67: Ильинский сельсовет | E67: 22631408 | F67: 7708503727 | G67: 525745041 | H67: Горьковская дирекция по тепловодоснабжению структурное подразделение Центральной дирекции по тепловодоснабжению - филиала ОАО "РЖД" | L67: нет | M67: 5136445 | N67: 5112046 | O67: 603101451 | Q67: 5412526
A68: 26808802 | B68: 67 | C68: Городецкий муниципальный район | D68: Городецкий муниципальный район | E68: 22628000 | F68: 7708503727 | G68: 525745041 | H68: Горьковская дирекция по тепловодоснабжению структурное подразделение Центральной дирекции по тепловодоснабжению - филиала ОАО "РЖД" | L68: нет | M68: 5223099 | N68: 5112046 | O68: 603101451 | Q68: 5412526
A69: 26808802 | B69: 68 | C69: Городецкий муниципальный район | D69: Федуринский сельсовет | E69: 22628458 | F69: 7708503727 | G69: 525745041 | H69: Горьковская дирекция по тепловодоснабжению структурное подразделение Центральной дирекции по тепловодоснабжению - филиала ОАО "РЖД" | L69: нет | M69: 5135292 | N69: 5112046 | O69: 603101451 | Q69: 5412526
A70: 26808802 | B70: 69 | C70: Лукояновский муниципальный район | D70: Город Лукоянов | E70: 22639101 | F70: 7708503727 | G70: 525745041 | H70: Горьковская дирекция по тепловодоснабжению структурное подразделение Центральной дирекции по тепловодоснабжению - филиала ОАО "РЖД" | L70: нет | M70: 5136458 | N70: 5112046 | O70: 603101451 | Q70: 5412526
A71: 26808802 | B71: 70 | C71: Семеновский | D71: Семеновский | E71: 22737000 | F71: 7708503727 | G71: 525745041 | H71: Горьковская дирекция по тепловодоснабжению структурное подразделение Центральной дирекции по тепловодоснабжению - филиала ОАО "РЖД" | L71: нет | M71: 1900284181 | N71: 5112046 | O71: 603101451 | Q71: 5412526
A72: 26808802 | B72: 71 | C72: Сергачский муниципальный район | D72: Город Сергач | E72: 22648101 | F72: 7708503727 | G72: 525745041 | H72: Горьковская дирекция по тепловодоснабжению структурное подразделение Центральной дирекции по тепловодоснабжению - филиала ОАО "РЖД" | L72: нет | M72: 5136486 | N72: 5112046 | O72: 603101451 | Q72: 5412526
A73: 26808802 | B73: 72 | C73: город Нижний Новгород | D73: город Нижний Новгород | E73: 22701000 | F73: 7708503727 | G73: 525745041 | H73: Горьковская дирекция по тепловодоснабжению структурное подразделение Центральной дирекции по тепловодоснабжению - филиала ОАО "РЖД" | L73: нет | M73: 5137637 | N73: 5112046 | O73: 603101451 | Q73: 5412526
A74: 26808802 | B74: 73 | C74: город Шахунья | D74: город Шахунья | E74: 22758000 | F74: 7708503727 | G74: 525745041 | H74: Горьковская дирекция по тепловодоснабжению структурное подразделение Центральной дирекции по тепловодоснабжению - филиала ОАО "РЖД" | L74: нет | M74: 1902070491 | N74: 5112046 | O74: 603101451 | Q74: 5412526
A75: 26634205 | B75: 74 | C75: Дальнеконстантиновский муниципальный район | D75: Рабочий поселок Дальнее Константиново | E75: 22630151 | F75: 5215001934 | G75: 521501001 | H75: Дальнеконстантиновское МУПП ЖКХ | L75: нет | M75: 5136559 | N75: 57441417 | O75: 5431533 | Q75: 5412526
A76: 26358163 | B76: 75 | C76: Краснобаковский муниципальный район | D76: Рабочий поселок Ветлужский | E76: 22635154 | F76: 5219382293 | G76: 521901001 | H76: Дмитриевское МУП ЖКХ | L76: нет | M76: 5136504 | N76: 5357675 | O76: 5431537 | Q76: 5412526
A77: 26555546 | B77: 76 | C77: город Нижний Новгород | D77: город Нижний Новгород | E77: 22701000 | F77: 5261005718 | G77: 526101001 | H77: ЗАО "Завод "Труд" | L77: нет | M77: 5137637 | N77: 56472448 | O77: 5431579 | Q77: 5412526
A78: 26322355 | B78: 77 | C78: город Нижний Новгород | D78: город Нижний Новгород | E78: 22701000 | F78: 5261017382 | G78: 526101001 | H78: ЗАО "Концерн "Термаль" | L78: нет | M78: 5137637 | N78: 5257048 | O78: 5431579 | Q78: 5412526
A79: 26358416 | B79: 78 | C79: город Нижний Новгород | D79: город Нижний Новгород | E79: 22701000 | F79: 5258050559 | G79: 525801001 | H79: ЗАО "Энерго групп" | L79: нет | M79: 5137637 | N79: 5257038 | O79: 5431576 | Q79: 5412526
A80: 26358476 | B80: 79 | C80: город Нижний Новгород | D80: город Нижний Новгород | E80: 22701000 | F80: 5262020719 | G80: 526201001 | H80: ЗАО МЗ "РИЛС" | L80: нет | M80: 5137637 | N80: 5272342 | O80: 5431581 | Q80: 5412526
A81: 28870867 | B81: 80 | C81: город Шахунья | D81: город Шахунья | E81: 22758000 | F81: 523903931595 | G81: отсутствует | H81: ИП Копытова Н.В. | L81: нет | M81: 1902070491 | N81: 1898148147 | O81: 500187316 | Q81: 5412526
A82: 31446275 | B82: 81 | C82: Богородский муниципальный округ | D82: Богородский муниципальный округ | E82: 22507000 | F82: 370202154863 | G82: отсутствует | H82: ИП МИХЕЕВ АНДРЕЙ ЛЕОНИДОВИЧ | L82: нет | M82: 5675664280 | N82: 5431039548 | O82: 500187316 | Q82: 5412526
A83: 31543929 | B83: 82 | C83: Балахнинский муниципальный округ | D83: Балахнинский муниципальный округ | E83: 22505000 | F83: 524402453501 | G83: отсутствует | H83: ИП Павлов А.В. | L83: нет | M83: 5687589352 | N83: 6442913953 | O83: 500187316 | Q83: 5412526
A84: 28868794 | B84: 83 | C84: Воротынский | D84: Воротынский | E84: 22719000 | F84: 525616836221 | G84: отсутствует | H84: ИП Чурашев Михаил Юрьевич | L84: нет | M84: 4918123108 | N84: 1898148150 | O84: 500187316 | Q84: 5412526
A85: 27713249 | B85: 84 | C85: Лысковский муниципальный округ | D85: Лысковский муниципальный округ | E85: 22540000 | F85: 5243002464 | G85: 522202001 | H85: Лысковский филиал ООО "Арзамасское ПО "Автопровод" | L85: нет | M85: 5680764377 | N85: 5272243 | O85: 907453064 | Q85: 5412526
A86: 26551350 | B86: 85 | C86: Ветлужский муниципальный район | D86: Волыновский сельсовет | E86: 22618408 | F86: 5209004278 | G86: 520901001 | H86: МОУ Белышевская школа | L86: нет | M86: 56405481 | N86: 56428590 | O86: 5431527 | Q86: 5412526
A87: 29648861 | B87: 86 | C87: Вадский муниципальный округ | D87: Вадский муниципальный округ | E87: 22514000 | F87: 5206025103 | G87: 520601001 | H87: МП "ВАДРЕСУРС" | L87: нет | M87: 5688733489 | N87: 2161826251 | O87: 5431524 | Q87: 5412526
A88: 26373529 | B88: 87 | C88: Семеновский | D88: Семеновский | E88: 22737000 | F88: 5228009786 | G88: 522801001 | H88: МП "Горводопровод" | L88: нет | M88: 1900284181 | N88: 5279579 | O88: 5431544 | Q88: 5412526
A89: 28942141 | B89: 88 | C89: Навашинский | D89: Навашинский | E89: 22730000 | F89: 5223034940 | G89: 522301001 | H89: МП "Жилкомсервис" | L89: нет | M89: 2322898925 | N89: 1991391619 | O89: 5431539 | Q89: 5412526
A90: 31521764 | B90: 89 | C90: Семеновский | D90: Семеновский | E90: 22737000 | F90: 5228058303 | G90: 522801001 | H90: МП "ИЛЬИНО-ЗАБОРСКОЕ ЖКХ" | L90: нет | M90: 1900284181 | N90: 6116776145 | O90: 5431544 | Q90: 5412526
A91: 26358144 | B91: 90 | C91: Дивеевский муниципальный округ | D91: Дивеевский муниципальный округ | E91: 22532000 | F91: 5216017239 | G91: 521601001 | H91: МП "Коммунальник" | L91: нет | M91: 5701634256 | N91: 5291855 | O91: 5431534 | Q91: 5412526
A92: 26358307 | B92: 91 | C92: город Бор | D92: город Бор | E92: 22712000 | F92: 5246004124 | G92: 524601001 | H92: МП "Линдовский ККПиБ" | L92: нет | M92: 1894698781 | N92: 5158744 | O92: 5431562 | Q92: 5412526
A93: 26373492 | B93: 92 | C93: город Первомайск | D93: город Первомайск | E93: 22734000 | F93: 5224003504 | G93: 522401001 | H93: МП "Радуга" | L93: нет | M93: 1728407209 | N93: 5161139 | O93: 5431540 | Q93: 5412526
A94: 26358141 | B94: 93 | C94: Дивеевский муниципальный округ | D94: Дивеевский муниципальный округ | E94: 22532000 | F94: 5216017126 | G94: 521601001 | H94: МП "Сатисское ЖКХ" | L94: нет | M94: 5701634256 | N94: 5158865 | O94: 5431534 | Q94: 5412526
A95: 27965842 | B95: 94 | C95: город Дзержинск | D95: город Дзержинск | E95: 22721000 | F95: 5249012187 | G95: 524901001 | H95: МП ЖКХ "Планета" | L95: нет | M95: 5136353 | N95: 1333672530 | O95: 5431565 | Q95: 5412526
A96: 26358297 | B96: 95 | C96: Богородский муниципальный округ | D96: Богородский муниципальный округ | E96: 22507000 | F96: 5245007965 | G96: 524501001 | H96: МП ЖКХ С.КАМЕНКИ | L96: нет | M96: 5675664280 | N96: 5272250 | O96: 5431561 | Q96: 5412526
A97: 31543727 | B97: 96 | C97: Ковернинский муниципальный округ | D97: Ковернинский муниципальный округ | E97: 22534000 | F97: 5248044330 | G97: 524801001 | H97: МП КОВЕРНИНСКОГО МУНИЦИПАЛЬНОГО ОКРУГА "ЖИЛИЩНО-КОММУНАЛЬНОЕ ХОЗЯЙСТВО "КОВЕРНИНО" | L97: нет | M97: 5701634257 | N97: 6194464193 | O97: 5431564 | Q97: 5412526
A98: 26551361 | B98: 97 | C98: Ветлужский муниципальный район | D98: Ветлужский муниципальный район | E98: 22618000 | F98: 5209005507 | G98: 520901001 | H98: МУК "Туранский дом культуры" | L98: нет | M98: 5136405 | N98: 57097384 | O98: 5431527 | Q98: 5412526
A99: 26652819 | B99: 98 | C99: Балахнинский муниципальный округ | D99: Балахнинский муниципальный округ | E99: 22505000 | F99: 5244022199 | G99: 524401001 | H99: МУП "Большое Козино" | L99: нет | M99: 5687589352 | N99: 57443217 | O99: 5431560 | Q99: 5412526
A100: 26373543 | B100: 99 | C100: Сосновский муниципальный район | D100: Давыдковский сельсовет | E100: 22650414 | F100: 5231004770 | G100: 523101001 | H100: МУП "Бытсервис" | L100: нет | M100: 5136640 | N100: 5160630 | O100: 5431549 | Q100: 5412526
A101: 26373543 | B101: 100 | C101: Сосновский муниципальный район | D101: Крутецкий сельсовет | E101: 22650420 | F101: 5231004770 | G101: 523101001 | H101: МУП "Бытсервис" | L101: нет | M101: 5136642 | N101: 5160630 | O101: 5431549 | Q101: 5412526
A102: 26373543 | B102: 101 | C102: Сосновский муниципальный район | D102: Рожковский сельсовет | E102: 22650428 | F102: 5231004770 | G102: 523101001 | H102: МУП "Бытсервис" | L102: нет | M102: 5136643 | N102: 5160630 | O102: 5431549 | Q102: 5412526
A103: 31247110 | B103: 102 | C103: Тоншаевский муниципальный округ | D103: Тоншаевский муниципальный округ | E103: 22553000 | F103: 5234005042 | G103: 523401001 | H103: МУП "ВОДНИК" | L103: нет | M103: 5701634259 | N103: 4316246693 | O103: 5431552 | Q103: 5412526
A104: 30855659 | B104: 103 | C104: Воротынский | D104: Воротынский | E104: 22719000 | F104: 5211759886 | G104: 521101001 | H104: МУП "ВОРОТЫНСКОЕ ЖКХ" | L104: нет | M104: 4918123108 | N104: 2879636571 | O104: 5431529 | Q104: 5412526
A105: 26358098 | B105: 104 | C105: Варнавинский муниципальный район | D105: Рабочий поселок Варнавино | E105: 22615151 | F105: 5207003582 | G105: 520701001 | H105: МУП "Варнавинкоммунсервис" | L105: нет | M105: 56405462 | N105: 5158770 | O105: 5431525 | Q105: 5412526
A106: 28871157 | B106: 105 | C106: город Шахунья | D106: город Шахунья | E106: 22758000 | F106: 5239010720 | G106: 523901001 | H106: МУП "Водоканал" | L106: нет | M106: 1902070491 | N106: 1898148148 | O106: 5431557 | Q106: 5412526
A107: 27201619 | B107: 106 | C107: город Дзержинск | D107: город Дзержинск | E107: 22721000 | F107: 5249003457 | G107: 524901001 | H107: МУП "ДзержинскЭнерго" | L107: нет | M107: 5136353 | N107: 885216132 | O107: 5431565 | Q107: 5412526
A108: 26358220 | B108: 107 | C108: Сосновский муниципальный район | D108: Елизаровский сельсовет | E108: 22650416 | F108: 5231004795 | G108: 523101001 | H108: МУП "Елизарово" | L108: нет | M108: 5136641 | N108: 5160862 | O108: 5431549 | Q108: 5412526
A109: 28449409 | B109: 108 | C109: Городецкий муниципальный район | D109: Бриляковский сельсовет | E109: 22628404 | F109: 5248036146 | G109: 524801001 | H109: МУП "ЖКХ "СЕВЕРНЫЙ" | L109: нет | M109: 5136471 | N109: 1601596646 | O109: 5431564 | Q109: 5412526
A110: 28449409 | B110: 109 | C110: Городецкий муниципальный район | D110: Смиркинский сельсовет | E110: 22628444 | F110: 5248036146 | G110: 524801001 | H110: МУП "ЖКХ "СЕВЕРНЫЙ" | L110: нет | M110: 5135289 | N110: 1601596646 | O110: 5431564 | Q110: 5412526
A111: 28005091 | B111: 110 | C111: Городецкий муниципальный район | D111: Тимирязевский сельсовет | E111: 22628452 | F111: 5248033561 | G111: 524801001 | H111: МУП "ЖКХ Буревестник" | L111: нет | M111: 5135291 | N111: 1319809967 | O111: 5431564 | Q111: 5412526
A112: 26358324 | B112: 111 | C112: Городецкий муниципальный район | D112: Зиняковский сельсовет | E112: 22628416 | F112: 5248015611 | G112: 524801001 | H112: МУП "ЖКХ Зарубинское" | L112: нет | M112: 5136473 | N112: 5158821 | O112: 5431564 | Q112: 5412526
A113: 26358331 | B113: 112 | C113: Городецкий муниципальный район | D113: Зиняковский сельсовет | E113: 22628416 | F113: 5248015700 | G113: 524801001 | H113: МУП "ЖКХ Зиняковское" | L113: нет | M113: 5136473 | N113: 5158824 | O113: 5431564 | Q113: 5412526
A114: 26358330 | B114: 113 | C114: Городецкий муниципальный район | D114: Ковригинский сельсовет | E114: 22628422 | F114: 5248015690 | G114: 524801001 | H114: МУП "ЖКХ Ковригинское" | L114: нет | M114: 5136475 | N114: 5158826 | O114: 5431564 | Q114: 5412526
A115: 26358329 | B115: 114 | C115: Городецкий муниципальный район | D115: Городецкий муниципальный район | E115: 22628000 | F115: 5248015682 | G115: 524801001 | H115: МУП "ЖКХ Кумохинское" | L115: нет | M115: 5223099 | N115: 5158830 | O115: 5431564 | Q115: 5412526
A116: 26358329 | B116: 115 | C116: Городецкий муниципальный район | D116: Кумохинский сельсовет | E116: 22628428 | F116: 5248015682 | G116: 524801001 | H116: МУП "ЖКХ Кумохинское" | L116: нет | M116: 5136476 | N116: 5158830 | O116: 5431564 | Q116: 5412526
A117: 28147903 | B117: 116 | C117: Лысковский муниципальный округ | D117: Лысковский муниципальный округ | E117: 22540000 | F117: 5222070569 | G117: 522201001 | H117: МУП "ЖКХ Лысковского района" | L117: нет | M117: 5680764377 | N117: 1469412353 | O117: 5431538 | Q117: 5412526
A118: 26358335 | B118: 117 | C118: Городецкий муниципальный район | D118: Николо-Погостинский сельсовет | E118: 22628442 | F118: 5248015756 | G118: 524801001 | H118: МУП "ЖКХ Мошковское" | L118: нет | M118: 1904526459 | N118: 5158836 | O118: 5431564 | Q118: 5412526
A119: 26358336 | B119: 118 | C119: Городецкий муниципальный район | D119: Рабочий поселок Первомайский | E119: 22628154 | F119: 5248016703 | G119: 524801001 | H119: МУП "ЖКХ ПЕРВОМАЙСКОЕ" | L119: нет | M119: 5136470 | N119: 5158841 | O119: 5431564 | Q119: 5412526
A120: 31266429 | B120: 119 | C120: Вачский муниципальный район | D120: Казаковский сельсовет | E120: 22617424 | F120: 5208006025 | G120: 520801001 | H120: МУП "ЖКХ" | L120: нет | M120: 56405473 | N120: 4377697742 | O120: 5431526 | Q120: 5412526
A121: 31266429 | B121: 120 | C121: Вачский муниципальный район | D121: Новосельский сельсовет | E121: 22617432 | F121: 5208006025 | G121: 520801001 | H121: МУП "ЖКХ" | L121: нет | M121: 56405475 | N121: 4377697742 | O121: 5431526 | Q121: 5412526
A122: 31266429 | B122: 121 | C122: Вачский муниципальный район | D122: Филинский сельсовет | E122: 22617436 | F122: 5208006025 | G122: 520801001 | H122: МУП "ЖКХ" | L122: нет | M122: 5272362 | N122: 4377697742 | O122: 5431526 | Q122: 5412526
A123: 31266429 | B123: 122 | C123: Вачский муниципальный район | D123: Чулковский сельсовет | E123: 22617440 | F123: 5208006025 | G123: 520801001 | H123: МУП "ЖКХ" | L123: нет | M123: 56405476 | N123: 4377697742 | O123: 5431526 | Q123: 5412526
A124: 28871911 | B124: 123 | C124: Перевозский | D124: Перевозский | E124: 22739000 | F124: 5225006709 | G124: 522501001 | H124: МУП "КОММУНАЛЬЩИК" | L124: нет | M124: 3437705962 | N124: 1898148125 | O124: 5431541 | Q124: 5412526
A125: 30872197 | B125: 124 | C125: Краснобаковский муниципальный район | D125: Зубилихинский сельсовет | E125: 22635404 | F125: 5219383900 | G125: 521901001 | H125: МУП "КОММУНРЕСУРС КРАСНОБАКОВСКОГО РАЙОНА" | L125: нет | M125: 5279628 | N125: 2897155642 | O125: 5431537 | Q125: 5412526
A126: 30872197 | B126: 125 | C126: Краснобаковский муниципальный район | D126: Рабочий поселок Ветлужский | E126: 22635154 | F126: 5219383900 | G126: 521901001 | H126: МУП "КОММУНРЕСУРС КРАСНОБАКОВСКОГО РАЙОНА" | L126: нет | M126: 5136504 | N126: 2897155642 | O126: 5431537 | Q126: 5412526
A127: 30872197 | B127: 126 | C127: Краснобаковский муниципальный район | D127: Рабочий поселок Красные Баки | E127: 22635151 | F127: 5219383900 | G127: 521901001 | H127: МУП "КОММУНРЕСУРС КРАСНОБАКОВСКОГО РАЙОНА" | L127: нет | M127: 5136503 | N127: 2897155642 | O127: 5431537 | Q127: 5412526
A128: 30872197 | B128: 127 | C128: Краснобаковский муниципальный район | D128: Чащихинский сельсовет | E128: 22635424 | F128: 5219383900 | G128: 521901001 | H128: МУП "КОММУНРЕСУРС КРАСНОБАКОВСКОГО РАЙОНА" | L128: нет | M128: 5136506 | N128: 2897155642 | O128: 5431537 | Q128: 5412526
A129: 26552168 | B129: 128 | C129: Шатковский муниципальный район | D129: Рабочий поселок Шатки | E129: 22657151 | F129: 5238006336 | G129: 523801001 | H129: МУП "КОМУНЭНЕРГО" | L129: нет | M129: 5137796 | N129: 57096120 | O129: 5431556 | Q129: 5412526
A130: 30354230 | B130: 129 | C130: Балахнинский муниципальный округ | D130: Балахнинский муниципальный округ | E130: 22505000 | F130: 5244029437 | G130: 524401001 | H130: МУП "КОНЕВО" | L130: нет | M130: 5687589352 | N130: 2239831299 | O130: 5431560 | Q130: 5412526
A131: 26358265 | B131: 130 | C131: Шатковский муниципальный район | D131: Рабочий поселок Лесогорск | E131: 22657154 | F131: 5238005484 | G131: 523801001 | H131: МУП "Лесогорск ЖКХ" | L131: нет | M131: 5137797 | N131: 5161024 | O131: 5431556 | Q131: 5412526
A132: 31158286 | B132: 131 | C132: Лысковский муниципальный округ | D132: Лысковский муниципальный округ | E132: 22540000 | F132: 5222071587 | G132: 522201001 | H132: МУП "Лысковокоммунсервис" | L132: нет | M132: 5680764377 | N132: 3891795472 | O132: 5431538 | Q132: 5412526
A133: 31314620 | B133: 132 | C133: Балахнинский муниципальный округ | D133: Балахнинский муниципальный округ | E133: 22505000 | F133: 5244031690 | G133: 524401001 | H133: МУП "МП "БРКК" МО "БМР" | L133: нет | M133: 5687589352 | N133: 4584835805 | O133: 5431560 | Q133: 5412526
A134: 27839234 | B134: 133 | C134: Балахнинский муниципальный округ | D134: Балахнинский муниципальный округ | E134: 22505000 | F134: 5244025070 | G134: 524401001 | H134: МУП "МП "ВОДОКАНАЛ" МО "БАЛАХНИНСКИЙ МУНИЦИПАЛЬНЫЙ ОКРУГ" НИЖЕГОРОДСКОЙ ОБЛАСТИ" | L134: нет | M134: 5687589352 | N134: 1273306641 | O134: 5431560 | Q134: 5412526
A135: 27808573 | B135: 134 | C135: Володарский муниципальный район | D135: Золинский сельсовет | E135: 22631404 | F135: 5214010679 | G135: 521401001 | H135: МУП "Новосмолинское" | L135: нет | M135: 5136444 | N135: 1269319483 | O135: 5431532 | Q135: 5412526
A136: 31205512 | B136: 135 | C136: Пильнинский муниципальный район | D136: Рабочий поселок Пильна | E136: 22645151 | F136: 5226013120 | G136: 522601001 | H136: МУП "РАЙТОПСБЫТ" | L136: нет | M136: 5272394 | N136: 2880615712 | O136: 5431542 | Q136: 5412526
A137: 30382083 | B137: 136 | C137: Варнавинский муниципальный район | D137: Северный сельсовет | E137: 22615428 | F137: 5207016670 | G137: 520701001 | H137: МУП "СЕВЕРНОЕ ЖКХ" | L137: нет | M137: 5272359 | N137: 2329271644 | O137: 5431525 | Q137: 5412526
A138: 26373630 | B138: 137 | C138: Городецкий муниципальный район | D138: Город Заволжье | E138: 22628103 | F138: 5248016372 | G138: 524801001 | H138: МУП "ТВК" г. Заволжья | L138: нет | M138: 5136469 | N138: 5158833 | O138: 5431564 | Q138: 5412526
A139: 31348885 | B139: 138 | C139: Ардатовский муниципальный район | D139: Рабочий поселок Мухтолово | E139: 22602155 | F139: 5201002409 | G139: 520101001 | H139: МУП "ТРУД" | L139: нет | M139: 5136326 | N139: 4864102673 | O139: 5431518 | Q139: 5412526
A140: 27573878 | B140: 139 | C140: Павловский муниципальный округ | D140: Павловский муниципальный округ | E140: 22542000 | F140: 5252029494 | G140: 525201001 | H140: МУП "Тепло" | L140: нет | M140: 5678799700 | N140: 907453129 | O140: 5431569 | Q140: 5412526
A141: 26552019 | B141: 140 | C141: Княгининский муниципальный район | D141: Возрожденский сельсовет | E141: 22633416 | F141: 5217001030 | G141: 521701001 | H141: МУП "Тепловик-1" | L141: нет | M141: 5136035 | N141: 56472432 | O141: 5431535 | Q141: 5412526
A142: 26552019 | B142: 141 | C142: Княгининский муниципальный район | D142: Город Княгинино | E142: 22633101 | F142: 5217001030 | G142: 521701001 | H142: МУП "Тепловик-1" | L142: нет | M142: 5136031 | N142: 56472432 | O142: 5431535 | Q142: 5412526
A143: 26552019 | B143: 142 | C143: Княгининский муниципальный район | D143: Соловьевский сельсовет | E143: 22633428 | F143: 5217001030 | G143: 521701001 | H143: МУП "Тепловик-1" | L143: нет | M143: 5136038 | N143: 56472432 | O143: 5431535 | Q143: 5412526
A144: 26358322 | B144: 143 | C144: Городецкий муниципальный район | D144: город Городец | E144: 22628101 | F144: 5248011350 | G144: 524801001 | H144: МУП "Тепловые сети" | L144: нет | M144: 5136468 | N144: 5158839 | O144: 5431564 | Q144: 5412526
A145: 26358221 | B145: 144 | C145: Сосновский муниципальный район | D145: Виткуловский сельсовет | E145: 22650412 | F145: 5231004851 | G145: 523101001 | H145: МУП "Теплоэнергия-1" | L145: нет | M145: 5136639 | N145: 5160625 | O145: 5431549 | Q145: 5412526
A146: 26358221 | B146: 145 | C146: Сосновский муниципальный район | D146: Рабочий поселок Сосновское | E146: 22650151 | F146: 5231004851 | G146: 523101001 | H146: МУП "Теплоэнергия-1" | L146: нет | M146: 5136636 | N146: 5160625 | O146: 5431549 | Q146: 5412526
A147: 26358221 | B147: 146 | C147: Сосновский муниципальный район | D147: Яковский сельсовет | E147: 22650436 | F147: 5231004851 | G147: 523101001 | H147: МУП "Теплоэнергия-1" | L147: нет | M147: 5136645 | N147: 5160625 | O147: 5431549 | Q147: 5412526
A148: 31566194 | B148: 147 | C148: Уренский муниципальный округ | D148: Уренский муниципальный округ | E148: 22554000 | F148: 5235006634 | G148: 523501001 | H148: МУП "УРЕНСКИЕ ТЕПЛОВЫЕ СЕТИ" УРЕНСКОГО МУНИЦИПАЛЬНОГО ОКРУГА НИЖЕГОРОДСКОЙ ОБЛАСТИ | L148: нет | M148: 5681195742 | N148: 6329155100 | O148: 5431553 | Q148: 5412526
A149: 26373388 | B149: 148 | C149: Большемурашкинский муниципальный район | D149: Рабочий поселок Большое Мурашкино | E149: 22610151 | F149: 5204001114 | G149: 520401001 | H149: МУП "Управляющая компания" | L149: нет | M149: 5135547 | N149: 5291851 | O149: 5431522 | Q149: 5412526
A150: 28053496 | B150: 149 | C150: город Шахунья | D150: город Шахунья | E150: 22758000 | F150: 5239010688 | G150: 523901001 | H150: МУП "ШОКС" | L150: нет | M150: 1902070491 | N150: 2579894167 | O150: 5431557 | Q150: 5412526
A151: 26551775 | B151: 150 | C151: Починковский муниципальный округ | D151: Починковский муниципальный округ | E151: 22546000 | F151: 5227005267 | G151: 522701001 | H151: МУП "Юго-Запад" | L151: нет | M151: 5701634258 | N151: 56472105 | O151: 5431543 | Q151: 5412526
A152: 26358255 | B152: 151 | C152: город Чкаловск | D152: город Чкаловск | E152: 22755000 | F152: 5236002390 | G152: 523601001 | H152: МУП «ЧКАЛОВСКЭНЕРГОРЕСУРС» | L152: нет | M152: 2306736400 | N152: 5161055 | O152: 5431554 | Q152: 5412526
A153: 31258650 | B153: 152 | C153: Варнавинский муниципальный район | D153: Восходовский сельсовет | E153: 22615406 | F153: 5207016782 | G153: 520701001 | H153: МУП ВАРНАВИНСКОГО РАЙОНА "ТЕПЛОСНАБЖЕНИЕ" | L153: нет | M153: 5272358 | N153: 4284677217 | O153: 5431525 | Q153: 5412526
A154: 27577563 | B154: 153 | C154: Шарангский муниципальный район | D154: Большеустинский сельсовет | E154: 22656408 | F154: 5237002949 | G154: 523701001 | H154: МУП ЖКХ | L154: нет | M154: 56405592 | N154: 5160999 | O154: 5431555 | Q154: 5412526
A155: 27577563 | B155: 154 | C155: Шарангский муниципальный район | D155: Рабочий поселок Шаранга | E155: 22656151 | F155: 5237002949 | G155: 523701001 | H155: МУП ЖКХ | L155: нет | M155: 5272403 | N155: 5160999 | O155: 5431555 | Q155: 5412526
A156: 27577563 | B156: 155 | C156: Шарангский муниципальный район | D156: Роженцовский сельсовет | E156: 22656424 | F156: 5237002949 | G156: 523701001 | H156: МУП ЖКХ | L156: нет | M156: 56405596 | N156: 5160999 | O156: 5431555 | Q156: 5412526
A157: 26358136 | B157: 156 | C157: Дальнеконстантиновский муниципальный район | D157: Богоявленский сельсовет | E157: 22630412 | F157: 5215010375 | G157: 521501001 | H157: МУП ЖКХ "БОГОЯВЛЕНСКОЕ" | L157: нет | M157: 5135312 | N157: 5158876 | O157: 5431533 | Q157: 5412526
A158: 26373417 | B158: 157 | C158: Воскресенский муниципальный район | D158: Воскресенский муниципальный район | E158: 22622000 | F158: 5212007342 | G158: 521201001 | H158: МУП ЖКХ "Водоканал" | L158: нет | M158: 5136564 | N158: 5279548 | O158: 5431530 | Q158: 5412526
A159: 26373427 | B159: 158 | C159: Володарский муниципальный район | D159: Мулинский сельсовет | E159: 22631411 | F159: 5214007997 | G159: 521401001 | H159: МУП ЖКХ "Жилсервис" Володарского района | L159: нет | M159: 5136446 | N159: 5158792 | O159: 5431532 | Q159: 5412526
A160: 26358120 | B160: 159 | C160: Володарский муниципальный район | D160: Рабочий поселок Ильиногорск | E160: 22631160 | F160: 5214005012 | G160: 521401001 | H160: МУП ЖКХ "Ильиногорское" | L160: нет | M160: 5136440 | N160: 5158786 | O160: 5431532 | Q160: 5412526
A161: 27633085 | B161: 160 | C161: Большеболдинский муниципальный район | D161: Большеболдинский муниципальный район | E161: 22609000 | F161: 5203002330 | G161: 520303001 | H161: МУП ЖКХ "Коммунальник" | L161: нет | M161: 5223093 | N161: 5158698 | O161: 5501754 | Q161: 5412526
A162: 27633085 | B162: 161 | C162: Большеболдинский муниципальный район | D162: Большеболдинский сельсовет | E162: 22609404 | F162: 5203002330 | G162: 520303001 | H162: МУП ЖКХ "Коммунальник" | L162: нет | M162: 5136557 | N162: 5158698 | O162: 5501754 | Q162: 5412526
A163: 28452082 | B163: 162 | C163: Городецкий муниципальный район | D163: Федуринский сельсовет | E163: 22628458 | F163: 5248034734 | G163: 524801001 | H163: МУП ЖКХ "Сокол" | L163: нет | M163: 5135292 | N163: 1601595774 | O163: 5431564 | Q163: 5412526
A164: 26553600 | B164: 163 | C164: Большемурашкинский муниципальный район | D164: Григоровский сельсовет | E164: 22610408 | F164: 5204001467 | G164: 520401001 | H164: МУП ЖКХ Григоровского сельсовета | L164: нет | M164: 5135549 | N164: 57097383 | O164: 5431522 | Q164: 5412526
A165: 26358091 | B165: 164 | C165: Большемурашкинский муниципальный район | D165: Советский сельсовет | E165: 22610404 | F165: 5204002319 | G165: 520401001 | H165: МУП ЖКХ п. Советский | L165: нет | M165: 5135548 | N165: 5158712 | O165: 5431522 | Q165: 5412526
A166: 26358231 | B166: 165 | C166: Тонкинский муниципальный район | D166: Рабочий поселок Тонкино | E166: 22652151 | F166: 5233002810 | G166: 523301001 | H166: МУП Тонкинского района "Тонкинские теплосети" | L166: нет | M166: 5272402 | N166: 5160832 | O166: 5431551 | Q166: 5412526
A167: 26358426 | B167: 166 | C167: город Нижний Новгород | D167: город Нижний Новгород | E167: 22701000 | F167: 5260002707 | G167: 526001001 | H167: ННГАСУ | L167: нет | M167: 5137637 | N167: 5161525 | O167: 5424085 | Q167: 5412526
A168: 26358474 | B168: 167 | C168: город Арзамас | D168: город Арзамас | E168: 22703000 | F168: 5262004442 | G168: 526201001 | H168: ННГУ | L168: нет | M168: 5136408 | N168: 5161475 | O168: 5431581 | Q168: 5412526
A169: 26555250 | B169: 168 | C169: город Нижний Новгород | D169: город Нижний Новгород | E169: 22701000 | F169: 5260000192 | G169: 525703001 | H169: НПАП № 1 - филиал ГП "Нижегородпассажиравтотранс" | L169: нет | M169: 5137637 | N169: 5161519 | O169: 57060650 | Q169: 5412526
A170: 26555257 | B170: 169 | C170: город Нижний Новгород | D170: город Нижний Новгород | E170: 22701000 | F170: 5260000192 | G170: 525802001 | H170: НПАП № 2 - филиал ГП "Нижегородпассажиравтотранс" | L170: нет | M170: 5137637 | N170: 5161519 | O170: 5431577 | Q170: 5412526
A171: 26358420 | B171: 170 | C171: город Нижний Новгород | D171: город Нижний Новгород | E171: 22701000 | F171: 7714733528 | G171: 525350001 | H171: Нижегородский авиастроительный завод "Сокол" - филиал АО "РСК "МиГ" | L171: нет | M171: 5137637 | N171: 2707983184 | O171: 5431571 | Q171: 5412526
A172: 26358477 | B172: 171 | C172: город Нижний Новгород | D172: город Нижний Новгород | E172: 22701000 | F172: 5262240714 | G172: 526201001 | H172: ОАО "170 РЗ СОП" | L172: нет | M172: 5137637 | N172: 1898148165 | O172: 5431581 | Q172: 5412526
A173: 26358400 | B173: 172 | C173: город Нижний Новгород | D173: город Нижний Новгород | E173: 22701000 | F173: 5257007173 | G173: 525701001 | H173: ОАО "ВВПКП "Оборонпромкомплекс" | L173: нет | M173: 5137637 | N173: 5161412 | O173: 5431574 | Q173: 5412526
A174: 26358459 | B174: 173 | C174: город Нижний Новгород | D174: город Нижний Новгород | E174: 22701000 | F174: 5260900066 | G174: 526001001 | H174: ОАО "ЗИП" | L174: нет | M174: 5137637 | N174: 5174619 | O174: 5424085 | Q174: 5412526
A175: 26569255 | B175: 174 | C175: Кстовский муниципальный район | D175: Афонинский сельсовет | E175: 22637404 | F175: 5250001581 | G175: 525001001 | H175: ОАО "Керма" | L175: нет | M175: 5272376 | N175: 5272274 | O175: 5431567 | Q175: 5412526
A176: 26358281 | B176: 175 | C176: город Арзамас | D176: город Арзамас | E176: 22703000 | F176: 5243001862 | G176: 524301001 | H176: ОАО "ЛЕГМАШ" | L176: нет | M176: 5136408 | N176: 5272241 | O176: 5431559 | Q176: 5412526
A177: 26358171 | B177: 176 | C177: Лысковский муниципальный округ | D177: Лысковский муниципальный округ | E177: 22540000 | F177: 5222000882 | G177: 522201001 | H177: ОАО "ЛЭТЗ" | L177: нет | M177: 5680764377 | N177: 5272178 | O177: 5431538 | Q177: 5412526
A178: 26555652 | B178: 177 | C178: город Нижний Новгород | D178: город Нижний Новгород | E178: 22701000 | F178: 5259008239 | G178: 525901001 | H178: ОАО "Оргсинтез" | L178: нет | M178: 5137637 | N178: 5161404 | O178: 5431578 | Q178: 5412526
A179: 26358361 | B179: 178 | C179: Павловский муниципальный округ | D179: Павловский муниципальный округ | E179: 22542000 | F179: 5252000382 | G179: 525201001 | H179: ОАО "Павловский завод им.Кирова" | L179: нет | M179: 5678799700 | N179: 5161444 | O179: 5431569 | Q179: 5412526
A180: 27566914 | B180: 179 | C180: город Нижний Новгород | D180: город Нижний Новгород | E180: 22701000 | F180: 5263008721 | G180: 526301001 | H180: ОАО "Силикатный завод №1" | L180: нет | M180: 5137637 | N180: 907453078 | O180: 5431582 | Q180: 5412526
A181: 26358214 | B181: 180 | C181: Сергачский муниципальный район | D181: Город Сергач | E181: 22648101 | F181: 5229007213 | G181: 522901001 | H181: ОАО "УК ЖКХ Сергачского района" | L181: нет | M181: 5136486 | N181: 5160636 | O181: 5431546 | Q181: 5412526
A182: 28148693 | B182: 181 | C182: город Нижний Новгород | D182: город Нижний Новгород | E182: 22701000 | F182: 5258000780 | G182: 525801001 | H182: ОАО хладокомбинат "Заречный" | L182: нет | M182: 5137637 | N182: 1512788104 | O182: 5431576 | Q182: 5412526
A183: 31612515 | B183: 182 | C183: город Нижний Новгород | D183: город Нижний Новгород | E183: 22701000 | F183: 5263148447 | G183: 526301001 | H183: ОБЩЕСТВО С ОГРАНИЧЕННОЙ ОТВЕТСТВЕННОСТЬЮ "ТЕПЛОТРЕЙД-НН" | L183: нет | M183: 5137637 | N183: 6740521155 | O183: 5431582 | Q183: 5412526
A184: 31531172 | B184: 183 | C184: Кстовский муниципальный район | D184: Афонинский сельсовет | E184: 22637404 | F184: 5250073836 | G184: 525001001 | H184: ООО "АКАДЕМКОМФОРТ" | L184: нет | M184: 5272376 | N184: 6134620038 | O184: 5431567 | Q184: 5412526
A185: 26358389 | B185: 184 | C185: город Нижний Новгород | D185: город Нижний Новгород | E185: 22701000 | F185: 5256049357 | G185: 525601001 | H185: ООО "Автозаводская ТЭЦ" | L185: нет | M185: 5137637 | N185: 5257032 | O185: 5431573 | Q185: 5412526
A186: 26358283 | B186: 185 | C186: город Арзамас | D186: город Арзамас | E186: 22703000 | F186: 5243002464 | G186: 524301001 | H186: ООО "Арзамасское ПО "Автопровод" | L186: нет | M186: 5136408 | N186: 5272243 | O186: 5431559 | Q186: 5412526
A187: 26647119 | B187: 186 | C187: Вадский муниципальный округ | D187: Вадский муниципальный округ | E187: 22514000 | F187: 5259088139 | G187: 525901001 | H187: ООО "Атриум Инвест" | L187: нет | M187: 5688733489 | N187: 497976952 | O187: 5431578 | Q187: 5412526
A188: 26647119 | B188: 187 | C188: Городецкий муниципальный район | D188: город Городец | E188: 22628101 | F188: 5259088139 | G188: 525901001 | H188: ООО "Атриум Инвест" | L188: нет | M188: 5136468 | N188: 497976952 | O188: 5431578 | Q188: 5412526
A189: 26647119 | B189: 188 | C189: Дивеевский муниципальный округ | D189: Дивеевский муниципальный округ | E189: 22532000 | F189: 5259088139 | G189: 525901001 | H189: ООО "Атриум Инвест" | L189: нет | M189: 5701634256 | N189: 497976952 | O189: 5431578 | Q189: 5412526
A190: 26647119 | B190: 189 | C190: Лысковский муниципальный округ | D190: Лысковский муниципальный округ | E190: 22540000 | F190: 5259088139 | G190: 525901001 | H190: ООО "Атриум Инвест" | L190: нет | M190: 5680764377 | N190: 497976952 | O190: 5431578 | Q190: 5412526
A191: 26647119 | B191: 190 | C191: Шатковский муниципальный район | D191: Рабочий поселок Шатки | E191: 22657151 | F191: 5259088139 | G191: 525901001 | H191: ООО "Атриум Инвест" | L191: нет | M191: 5137796 | N191: 497976952 | O191: 5431578 | Q191: 5412526
A192: 26647119 | B192: 191 | C192: город Бор | D192: город Бор | E192: 22712000 | F192: 5259088139 | G192: 525901001 | H192: ООО "Атриум Инвест" | L192: нет | M192: 1894698781 | N192: 497976952 | O192: 5431578 | Q192: 5412526
A193: 26647119 | B193: 192 | C193: город Кулебаки | D193: город Кулебаки | E193: 22727000 | F193: 5259088139 | G193: 525901001 | H193: ООО "Атриум Инвест" | L193: нет | M193: 2305781044 | N193: 497976952 | O193: 5431578 | Q193: 5412526
A194: 28460925 | B194: 193 | C194: Вадский муниципальный округ | D194: Вадский муниципальный округ | E194: 22514000 | F194: 5246043620 | G194: 524601001 | H194: ООО "БТГ" | L194: нет | M194: 5688733489 | N194: 1618001579 | O194: 5431562 | Q194: 5412526
A195: 28460925 | B195: 194 | C195: Вознесенский муниципальный район | D195: Бахтызинский сельсовет | E195: 22619408 | F195: 5246043620 | G195: 524601001 | H195: ООО "БТГ" | L195: нет | M195: 5272364 | N195: 1618001579 | O195: 5431562 | Q195: 5412526
A196: 28460925 | B196: 195 | C196: Вознесенский муниципальный район | D196: Бутаковский сельсовет | E196: 22619416 | F196: 5246043620 | G196: 524601001 | H196: ООО "БТГ" | L196: нет | M196: 56405492 | N196: 1618001579 | O196: 5431562 | Q196: 5412526
A197: 28460925 | B197: 196 | C197: Вознесенский муниципальный район | D197: Криушинский сельсовет | E197: 22619420 | F197: 5246043620 | G197: 524601001 | H197: ООО "БТГ" | L197: нет | M197: 56405493 | N197: 1618001579 | O197: 5431562 | Q197: 5412526
A198: 28460925 | B198: 197 | C198: Вознесенский муниципальный район | D198: Нарышкинский сельсовет | E198: 22619432 | F198: 5246043620 | G198: 524601001 | H198: ООО "БТГ" | L198: нет | M198: 5272365 | N198: 1618001579 | O198: 5431562 | Q198: 5412526
A199: 31618550 | B199: 198 | C199: Володарский муниципальный район | D199: Город Володарск | E199: 22631103 | F199: 5259154060 | G199: 525901001 | H199: ООО "БУГРОВСКИЕ МЕЛЬНИЦЫ" | L199: нет | M199: 5136439 | N199: 6742560596 | O199: 5431578 | Q199: 5412526
A200: 31443656 | B200: 199 | C200: Володарский муниципальный район | D200: Город Володарск | E200: 22631103 | F200: 5261126776 | G200: 526101001 | H200: ООО "БУГРОВСКИЕ МЕЛЬНИЦЫ" | L200: нет | M200: 5136439 | N200: 5386612227 | O200: 5431579 | Q200: 5412526
... 192 more rows

Sheet UNREG_LIST_ORG (hidden)

Sheet PRICEZONE_LIST_ORG (hidden)

Sheet ACCESSIBILITY_LIST_ORG (hidden)
A1: INN_ID | B1: KPP_ID | C1: ACCESSIBILITY | D1: LEGAL_TARIFF_EXISTENCE
A2: 5158839 | B2: 5431564 | C2: Y | D2: Y

Sheet REESTR_MO (hidden)
A1: МР | B1: МО | C1: ОКТМО | D1: ТИП МО | E1: МР | F1: ИМЯ ДИАПАЗОНА
A2: Ардатовский муниципальный район | B2: Ардатовский муниципальный район | C2: 22602000 | D2: муниципальный район | E2: Ардатовский муниципальный район | F2: MO_LIST_2
A3: Ардатовский муниципальный район | B3: Кужендеевский сельсовет | C3: 22602424 | D3: сельское поселение | E3: Арзамасский муниципальный район | F3: MO_LIST_3
A4: Ардатовский муниципальный район | B4: Личадеевский сельсовет | C4: 22602428 | D4: сельское поселение | E4: Балахнинский муниципальный округ | F4: MO_LIST_4
A5: Ардатовский муниципальный район | B5: Михеевский сельсовет | C5: 22602432 | D5: сельское поселение | E5: Богородский муниципальный округ | F5: MO_LIST_5
A6: Ардатовский муниципальный район | B6: Рабочий поселок Ардатов | C6: 22602151 | D6: городское поселение, в состав которого входит поселок | E6: Большеболдинский муниципальный район | F6: MO_LIST_6
A7: Ардатовский муниципальный район | B7: Рабочий поселок Мухтолово | C7: 22602155 | D7: городское поселение, в состав которого входит поселок | E7: Большемурашкинский муниципальный район | F7: MO_LIST_7
A8: Ардатовский муниципальный район | B8: Саконский сельсовет | C8: 22602436 | D8: сельское поселение | E8: Бутурлинский муниципальный округ | F8: MO_LIST_8
A9: Ардатовский муниципальный район | B9: Стексовский сельсовет | C9: 22602440 | D9: сельское поселение | E9: Вадский муниципальный округ | F9: MO_LIST_9
A10: Ардатовский муниципальный район | B10: Хрипуновский сельсовет | C10: 22602444 | D10: сельское поселение | E10: Варнавинский муниципальный район | F10: MO_LIST_10
A11: Арзамасский муниципальный район | B11: Абрамовский сельсовет | C11: 22603404 | D11: сельское поселение | E11: Вачский муниципальный район | F11: MO_LIST_11
A12: Арзамасский муниципальный район | B12: Арзамасский муниципальный район | C12: 22603000 | D12: муниципальный район | E12: Ветлужский муниципальный район | F12: MO_LIST_12
A13: Арзамасский муниципальный район | B13: Балахонихинский сельсовет | C13: 22603408 | D13: сельское поселение | E13: Вознесенский муниципальный район | F13: MO_LIST_13
A14: Арзамасский муниципальный район | B14: Бебяевский сельсовет | C14: 22603456 | D14: сельское поселение | E14: Володарский муниципальный район | F14: MO_LIST_14
A15: Арзамасский муниципальный район | B15: Березовский сельсовет | C15: 22603410 | D15: сельское поселение | E15: Воротынский | F15: MO_LIST_15
A16: Арзамасский муниципальный район | B16: Большетумановский сельсовет | C16: 22603412 | D16: сельское поселение | E16: Воскресенский муниципальный район | F16: MO_LIST_16
A17: Арзамасский муниципальный район | B17: Кирилловский сельсовет | C17: 22603424 | D17: сельское поселение | E17: Гагинский муниципальный район | F17: MO_LIST_17
A18: Арзамасский муниципальный район | B18: Красносельский сельсовет | C18: 22603432 | D18: сельское поселение | E18: Городецкий муниципальный район | F18: MO_LIST_18
A19: Арзамасский муниципальный район | B19: Ломовский сельсовет | C19: 22603440 | D19: сельское поселение | E19: Дальнеконстантиновский муниципальный район | F19: MO_LIST_19
A20: Арзамасский муниципальный район | B20: Новоусадский сельсовет | C20: 22603452 | D20: сельское поселение | E20: Дивеевский муниципальный округ | F20: MO_LIST_20
A21: Арзамасский муниципальный район | B21: Рабочий поселок Выездное | C21: 22603155 | D21: городское поселение, в состав которого входит поселок | E21: ЗАТО город Саров | F21: MO_LIST_21
A22: Арзамасский муниципальный район | B22: Слизневский сельсовет | C22: 22603472 | D22: сельское поселение | E22: Княгининский муниципальный район | F22: MO_LIST_22
A23: Арзамасский муниципальный район | B23: Чернухинский сельсовет | C23: 22603476 | D23: сельское поселение | E23: Ковернинский муниципальный округ | F23: MO_LIST_23
A24: Арзамасский муниципальный район | B24: Шатовский сельсовет | C24: 22603480 | D24: сельское поселение | E24: Краснобаковский муниципальный район | F24: MO_LIST_24
A25: Балахнинский муниципальный округ | B25: Балахнинский муниципальный округ | C25: 22505000 | D25: муниципальный округ | E25: Краснооктябрьский муниципальный район | F25: MO_LIST_25
A26: Богородский муниципальный округ | B26: Богородский муниципальный округ | C26: 22507000 | D26: муниципальный округ | E26: Кстовский муниципальный район | F26: MO_LIST_26
A27: Большеболдинский муниципальный район | B27: Большеболдинский муниципальный район | C27: 22609000 | D27: муниципальный район | E27: Лукояновский муниципальный район | F27: MO_LIST_27
A28: Большеболдинский муниципальный район | B28: Большеболдинский сельсовет | C28: 22609404 | D28: сельское поселение | E28: Лысковский муниципальный округ | F28: MO_LIST_28
A29: Большеболдинский муниципальный район | B29: Молчановский сельсовет | C29: 22609416 | D29: сельское поселение | E29: Навашинский | F29: MO_LIST_29
A30: Большеболдинский муниципальный район | B30: Новослободской сельсовет | C30: 22609420 | D30: сельское поселение | E30: Павловский муниципальный округ | F30: MO_LIST_30
A31: Большеболдинский муниципальный район | B31: Пермеевский сельсовет | C31: 22609422 | D31: сельское поселение | E31: Перевозский | F31: MO_LIST_31
A32: Большеболдинский муниципальный район | B32: Пикшенский сельсовет | C32: 22609424 | D32: сельское поселение | E32: Пильнинский муниципальный район | F32: MO_LIST_32
A33: Большеболдинский муниципальный район | B33: Черновский сельсовет | C33: 22609432 | D33: сельское поселение | E33: Починковский муниципальный округ | F33: MO_LIST_33
A34: Большемурашкинский муниципальный район | B34: Большемурашкинский муниципальный район | C34: 22610000 | D34: муниципальный район | E34: Семеновский | F34: MO_LIST_34
A35: Большемурашкинский муниципальный район | B35: Григоровский сельсовет | C35: 22610408 | D35: сельское поселение | E35: Сергачский муниципальный район | F35: MO_LIST_35
A36: Большемурашкинский муниципальный район | B36: Рабочий поселок Большое Мурашкино | C36: 22610151 | D36: городское поселение, в состав которого входит поселок | E36: Сеченовский муниципальный район | F36: MO_LIST_36
A37: Большемурашкинский муниципальный район | B37: Советский сельсовет | C37: 22610404 | D37: сельское поселение | E37: Сокольский | F37: MO_LIST_37
A38: Большемурашкинский муниципальный район | B38: Холязинский сельсовет | C38: 22610428 | D38: сельское поселение | E38: Сосновский муниципальный район | F38: MO_LIST_38
A39: Бутурлинский муниципальный округ | B39: Бутурлинский муниципальный округ | C39: 22512000 | D39: муниципальный округ | E39: Спасский муниципальный район | F39: MO_LIST_39
A40: Вадский муниципальный округ | B40: Вадский муниципальный округ | C40: 22514000 | D40: муниципальный округ | E40: Тонкинский муниципальный район | F40: MO_LIST_40
A41: Варнавинский муниципальный район | B41: Богородский сельсовет | C41: 22615420 | D41: сельское поселение | E41: Тоншаевский муниципальный округ | F41: MO_LIST_41
A42: Варнавинский муниципальный район | B42: Варнавинский муниципальный район | C42: 22615000 | D42: муниципальный район | E42: Уренский муниципальный округ | F42: MO_LIST_42
A43: Варнавинский муниципальный район | B43: Восходовский сельсовет | C43: 22615406 | D43: сельское поселение | E43: Шарангский муниципальный район | F43: MO_LIST_43
A44: Варнавинский муниципальный район | B44: Михаленинский сельсовет | C44: 22615416 | D44: сельское поселение | E44: Шатковский муниципальный район | F44: MO_LIST_44
A45: Варнавинский муниципальный район | B45: Рабочий поселок Варнавино | C45: 22615151 | D45: городское поселение, в состав которого входит поселок | E45: город Арзамас | F45: MO_LIST_45
A46: Варнавинский муниципальный район | B46: Северный сельсовет | C46: 22615428 | D46: сельское поселение | E46: город Бор | F46: MO_LIST_46
A47: Варнавинский муниципальный район | B47: Шудский сельсовет | C47: 22615430 | D47: сельское поселение | E47: город Выкса | F47: MO_LIST_47
A48: Вачский муниципальный район | B48: Арефинский сельсовет | C48: 22617408 | D48: сельское поселение | E48: город Дзержинск | F48: MO_LIST_48
A49: Вачский муниципальный район | B49: Вачский муниципальный район | C49: 22617000 | D49: муниципальный район | E49: город Кулебаки | F49: MO_LIST_49
A50: Вачский муниципальный район | B50: Казаковский сельсовет | C50: 22617424 | D50: сельское поселение | E50: город Нижний Новгород | F50: MO_LIST_50
A51: Вачский муниципальный район | B51: Новосельский сельсовет | C51: 22617432 | D51: сельское поселение | E51: город Первомайск | F51: MO_LIST_51
A52: Вачский муниципальный район | B52: Рабочий поселок Вача | C52: 22617151 | D52: городское поселение, в состав которого входит поселок | E52: город Чкаловск | F52: MO_LIST_52
A53: Вачский муниципальный район | B53: Филинский сельсовет | C53: 22617436 | D53: сельское поселение | E53: город Шахунья | F53: MO_LIST_53
A54: Вачский муниципальный район | B54: Чулковский сельсовет | C54: 22617440 | D54: сельское поселение
A55: Ветлужский муниципальный район | B55: Ветлужский муниципальный район | C55: 22618000 | D55: муниципальный район
A56: Ветлужский муниципальный район | B56: Волыновский сельсовет | C56: 22618408 | D56: сельское поселение
A57: Ветлужский муниципальный район | B57: Город Ветлуга | C57: 22618101 | D57: городское поселение, в состав которого входит город
A58: Ветлужский муниципальный район | B58: Крутцовский сельсовет | C58: 22618416 | D58: сельское поселение
A59: Ветлужский муниципальный район | B59: Макарьевский сельсовет | C59: 22618420 | D59: сельское поселение
A60: Ветлужский муниципальный район | B60: Мошкинский сельсовет | C60: 22618428 | D60: сельское поселение
A61: Ветлужский муниципальный район | B61: Новоуспенский сельсовет | C61: 22618432 | D61: сельское поселение
A62: Ветлужский муниципальный район | B62: Поселок им Калинина | C62: 22618154 | D62: городское поселение, в состав которого входит поселок
A63: Ветлужский муниципальный район | B63: Проновский сельсовет | C63: 22618436 | D63: сельское поселение
A64: Ветлужский муниципальный район | B64: Туранский сельсовет | C64: 22618444 | D64: сельское поселение
A65: Вознесенский муниципальный район | B65: Бахтызинский сельсовет | C65: 22619408 | D65: сельское поселение
A66: Вознесенский муниципальный район | B66: Благодатовский сельсовет | C66: 22619412 | D66: сельское поселение
A67: Вознесенский муниципальный район | B67: Бутаковский сельсовет | C67: 22619416 | D67: сельское поселение
A68: Вознесенский муниципальный район | B68: Вознесенский муниципальный район | C68: 22619000 | D68: муниципальный район
A69: Вознесенский муниципальный район | B69: Криушинский сельсовет | C69: 22619420 | D69: сельское поселение
A70: Вознесенский муниципальный район | B70: Мотызлейский сельсовет | C70: 22619428 | D70: сельское поселение
A71: Вознесенский муниципальный район | B71: Нарышкинский сельсовет | C71: 22619432 | D71: сельское поселение
A72: Вознесенский муниципальный район | B72: Полховско-Майданский сельсовет | C72: 22619440 | D72: сельское поселение
A73: Вознесенский муниципальный район | B73: Рабочий поселок Вознесенское | C73: 22619151 | D73: городское поселение, в состав которого входит поселок
A74: Вознесенский муниципальный район | B74: Сарминский сельсовет | C74: 22619444 | D74: сельское поселение
A75: Володарский муниципальный район | B75: Володарский муниципальный район | C75: 22631000 | D75: муниципальный район
A76: Володарский муниципальный район | B76: Город Володарск | C76: 22631103 | D76: городское поселение, в состав которого входит город
A77: Володарский муниципальный район | B77: Золинский сельсовет | C77: 22631404 | D77: сельское поселение
A78: Володарский муниципальный район | B78: Ильинский сельсовет | C78: 22631408 | D78: сельское поселение
A79: Володарский муниципальный район | B79: Мулинский сельсовет | C79: 22631411 | D79: сельское поселение
A80: Володарский муниципальный район | B80: Рабочий поселок Ильиногорск | C80: 22631160 | D80: городское поселение, в состав которого входит поселок
A81: Володарский муниципальный район | B81: Рабочий поселок Решетиха | C81: 22631168 | D81: городское поселение, в состав которого входит поселок
A82: Володарский муниципальный район | B82: Рабочий поселок Смолино | C82: 22631170 | D82: городское поселение, в состав которого входит поселок
A83: Володарский муниципальный район | B83: Рабочий поселок Фролищи | C83: 22631173 | D83: городское поселение, в состав которого входит поселок
A84: Володарский муниципальный район | B84: Рабочий поселок Центральный | C84: 22631176 | D84: городское поселение, в состав которого входит поселок
A85: Володарский муниципальный район | B85: Рабочий поселок Юганец | C85: 22631179 | D85: городское поселение, в состав которого входит поселок
A86: Володарский муниципальный район | B86: Сельсовет Красная Горка | C86: 22631402 | D86: сельское поселение
A87: Воротынский | B87: Воротынский | C87: 22719000 | D87: городской округ
A88: Воскресенский муниципальный район | B88: Благовещенский сельсовет | C88: 22622404 | D88: сельское поселение
A89: Воскресенский муниципальный район | B89: Богородский сельсовет | C89: 22622408 | D89: сельское поселение
A90: Воскресенский муниципальный район | B90: Владимирский сельсовет | C90: 22622416 | D90: сельское поселение
A91: Воскресенский муниципальный район | B91: Воздвиженский сельсовет | C91: 22622420 | D91: сельское поселение
A92: Воскресенский муниципальный район | B92: Воскресенский муниципальный район | C92: 22622000 | D92: муниципальный район
A93: Воскресенский муниципальный район | B93: Глуховский сельсовет | C93: 22622424 | D93: сельское поселение
A94: Воскресенский муниципальный район | B94: Егоровский сельсовет | C94: 22622432 | D94: сельское поселение
A95: Воскресенский муниципальный район | B95: Капустихинский сельсовет | C95: 22622440 | D95: сельское поселение
A96: Воскресенский муниципальный район | B96: Нахратовский сельсовет | C96: 22622452 | D96: сельское поселение
A97: Воскресенский муниципальный район | B97: Нестиарский сельсовет | C97: 22622456 | D97: сельское поселение
A98: Воскресенский муниципальный район | B98: Рабочий поселок Воскресенское | C98: 22622151 | D98: городское поселение, в состав которого входит поселок
A99: Воскресенский муниципальный район | B99: Староустинский сельсовет | C99: 22622460 | D99: сельское поселение
A100: Гагинский муниципальный район | B100: Большеаратский сельсовет | C100: 22626404 | D100: сельское поселение
A101: Гагинский муниципальный район | B101: Ветошкинский сельсовет | C101: 22626408 | D101: сельское поселение
A102: Гагинский муниципальный район | B102: Гагинский муниципальный район | C102: 22626000 | D102: муниципальный район
A103: Гагинский муниципальный район | B103: Гагинский сельсовет | C103: 22626412 | D103: сельское поселение
A104: Гагинский муниципальный район | B104: Покровский сельсовет | C104: 22626432 | D104: сельское поселение
A105: Гагинский муниципальный район | B105: Ушаковский сельсовет | C105: 22626440 | D105: сельское поселение
A106: Гагинский муниципальный район | B106: Юрьевский сельсовет | C106: 22626444 | D106: сельское поселение
A107: Городецкий муниципальный район | B107: Бриляковский сельсовет | C107: 22628404 | D107: сельское поселение
A108: Городецкий муниципальный район | B108: Город Заволжье | C108: 22628103 | D108: городское поселение, в состав которого входит город
A109: Городецкий муниципальный район | B109: Городецкий муниципальный район | C109: 22628000 | D109: муниципальный район
A110: Городецкий муниципальный район | B110: Зиняковский сельсовет | C110: 22628416 | D110: сельское поселение
A111: Городецкий муниципальный район | B111: Ковригинский сельсовет | C111: 22628422 | D111: сельское поселение
A112: Городецкий муниципальный район | B112: Кумохинский сельсовет | C112: 22628428 | D112: сельское поселение
A113: Городецкий муниципальный район | B113: Николо-Погостинский сельсовет | C113: 22628442 | D113: сельское поселение
A114: Городецкий муниципальный район | B114: Рабочий поселок Первомайский | C114: 22628154 | D114: городское поселение, в состав которого входит поселок
A115: Городецкий муниципальный район | B115: Смиркинский сельсовет | C115: 22628444 | D115: сельское поселение
A116: Городецкий муниципальный район | B116: Смольковский сельсовет | C116: 22628448 | D116: сельское поселение
A117: Городецкий муниципальный район | B117: Тимирязевский сельсовет | C117: 22628452 | D117: сельское поселение
A118: Городецкий муниципальный район | B118: Федуринский сельсовет | C118: 22628458 | D118: сельское поселение
A119: Городецкий муниципальный район | B119: город Городец | C119: 22628101 | D119: городское поселение, в состав которого входит город
A120: Дальнеконстантиновский муниципальный район | B120: Белозеровский сельсовет | C120: 22630408 | D120: сельское поселение
A121: Дальнеконстантиновский муниципальный район | B121: Богоявленский сельсовет | C121: 22630412 | D121: сельское поселение
A122: Дальнеконстантиновский муниципальный район | B122: Дальнеконстантиновский муниципальный район | C122: 22630000 | D122: муниципальный район
A123: Дальнеконстантиновский муниципальный район | B123: Дубравский сельсовет | C123: 22630444 | D123: сельское поселение
A124: Дальнеконстантиновский муниципальный район | B124: Кужутский сельсовет | C124: 22630428 | D124: сельское поселение
A125: Дальнеконстантиновский муниципальный район | B125: Малопицкий сельсовет | C125: 22630430 | D125: сельское поселение
A126: Дальнеконстантиновский муниципальный район | B126: Нижегородский сельсовет | C126: 22630420 | D126: сельское поселение
A127: Дальнеконстантиновский муниципальный район | B127: Рабочий поселок Дальнее Константиново | C127: 22630151 | D127: городское поселение, в состав которого входит поселок
A128: Дальнеконстантиновский муниципальный район | B128: Сарлейский сельсовет | C128: 22630440 | D128: сельское поселение
A129: Дальнеконстантиновский муниципальный район | B129: Суроватихинский сельсовет | C129: 22630448 | D129: сельское поселение
A130: Дальнеконстантиновский муниципальный район | B130: Тепелевский сельсовет | C130: 22630456 | D130: сельское поселение
A131: Дивеевский муниципальный округ | B131: Дивеевский муниципальный округ | C131: 22532000 | D131: муниципальный округ
A132: ЗАТО город Саров | B132: ЗАТО город Саров | C132: 22704000 | D132: городской округ
A133: Княгининский муниципальный район | B133: Ананьевский сельсовет | C133: 22633404 | D133: сельское поселение
A134: Княгининский муниципальный район | B134: Белкинский сельсовет | C134: 22633408 | D134: сельское поселение
A135: Княгининский муниципальный район | B135: Возрожденский сельсовет | C135: 22633416 | D135: сельское поселение
A136: Княгининский муниципальный район | B136: Город Княгинино | C136: 22633101 | D136: городское поселение, в состав которого входит город
A137: Княгининский муниципальный район | B137: Княгининский муниципальный район | C137: 22633000 | D137: муниципальный район
A138: Княгининский муниципальный район | B138: Соловьевский сельсовет | C138: 22633428 | D138: сельское поселение
A139: Ковернинский муниципальный округ | B139: Ковернинский муниципальный округ | C139: 22534000 | D139: муниципальный округ
A140: Краснобаковский муниципальный район | B140: Зубилихинский сельсовет | C140: 22635404 | D140: сельское поселение
A141: Краснобаковский муниципальный район | B141: Краснобаковский муниципальный район | C141: 22635000 | D141: муниципальный район
A142: Краснобаковский муниципальный район | B142: Прудовский сельсовет | C142: 22635430 | D142: сельское поселение
A143: Краснобаковский муниципальный район | B143: Рабочий поселок Ветлужский | C143: 22635154 | D143: городское поселение, в состав которого входит поселок
A144: Краснобаковский муниципальный район | B144: Рабочий поселок Красные Баки | C144: 22635151 | D144: городское поселение, в состав которого входит поселок
A145: Краснобаковский муниципальный район | B145: Чащихинский сельсовет | C145: 22635424 | D145: сельское поселение
A146: Краснобаковский муниципальный район | B146: Шеманихинский сельсовет | C146: 22635432 | D146: сельское поселение
A147: Краснооктябрьский муниципальный район | B147: Большерыбушкинский сельсовет | C147: 22636408 | D147: сельское поселение
A148: Краснооктябрьский муниципальный район | B148: Ендовищенский сельсовет | C148: 22636412 | D148: сельское поселение
A149: Краснооктябрьский муниципальный район | B149: Кечасовский сельсовет | C149: 22636416 | D149: сельское поселение
A150: Краснооктябрьский муниципальный район | B150: Ключищенский сельсовет | C150: 22636424 | D150: сельское поселение
A151: Краснооктябрьский муниципальный район | B151: Краснооктябрьский муниципальный район | C151: 22636000 | D151: муниципальный район
A152: Краснооктябрьский муниципальный район | B152: Маресевский сельсовет | C152: 22636425 | D152: сельское поселение
A153: Краснооктябрьский муниципальный район | B153: Медянский сельсовет | C153: 22636426 | D153: сельское поселение
A154: Краснооктябрьский муниципальный район | B154: Пошатовский сельсовет | C154: 22636427 | D154: сельское поселение
A155: Краснооктябрьский муниципальный район | B155: Салганский сельсовет | C155: 22636428 | D155: сельское поселение
A156: Краснооктябрьский муниципальный район | B156: Саргинский сельсовет | C156: 22636432 | D156: сельское поселение
A157: Краснооктябрьский муниципальный район | B157: Семеновский сельсовет | C157: 22636436 | D157: сельское поселение
A158: Краснооктябрьский муниципальный район | B158: Уразовский сельсовет | C158: 22636440 | D158: сельское поселение
A159: Краснооктябрьский муниципальный район | B159: Чембилеевский сельсовет | C159: 22636444 | D159: сельское поселение
A160: Кстовский муниципальный район | B160: Афонинский сельсовет | C160: 22637404 | D160: сельское поселение
A161: Кстовский муниципальный район | B161: Безводнинский сельсовет | C161: 22637408 | D161: сельское поселение
A162: Кстовский муниципальный район | B162: Ближнеборисовский сельсовет | C162: 22637412 | D162: сельское поселение
A163: Кстовский муниципальный район | B163: Большеельнинский сельсовет | C163: 22637416 | D163: сельское поселение
A164: Кстовский муниципальный район | B164: Большемокринский сельсовет | C164: 22637420 | D164: сельское поселение
A165: Кстовский муниципальный район | B165: Город Кстово | C165: 22637101 | D165: городское поселение, в состав которого входит город
A166: Кстовский муниципальный район | B166: Запрудновский сельсовет | C166: 22637424 | D166: сельское поселение
A167: Кстовский муниципальный район | B167: Кстовский муниципальный район | C167: 22637000 | D167: муниципальный район
A168: Кстовский муниципальный район | B168: Новоликеевский сельсовет | C168: 22637436 | D168: сельское поселение
A169: Кстовский муниципальный район | B169: Прокошевский сельсовет | C169: 22637438 | D169: сельское поселение
A170: Кстовский муниципальный район | B170: Работкинский сельсовет | C170: 22637440 | D170: сельское поселение
A171: Кстовский муниципальный район | B171: Ройкинский сельсовет | C171: 22637442 | D171: сельское поселение
A172: Кстовский муниципальный район | B172: Слободской сельсовет | C172: 22637444 | D172: сельское поселение
A173: Кстовский муниципальный район | B173: Чернухинский сельсовет | C173: 22637448 | D173: сельское поселение
A174: Кстовский муниципальный район | B174: Чернышихинский сельсовет | C174: 22637428 | D174: сельское поселение
A175: Лукояновский муниципальный район | B175: Большеарский сельсовет | C175: 22639404 | D175: сельское поселение
A176: Лукояновский муниципальный район | B176: Большемаресьевский сельсовет | C176: 22639412 | D176: сельское поселение
A177: Лукояновский муниципальный район | B177: Город Лукоянов | C177: 22639101 | D177: городское поселение, в состав которого входит город
A178: Лукояновский муниципальный район | B178: Кудеяровский сельсовет | C178: 22639430 | D178: сельское поселение
A179: Лукояновский муниципальный район | B179: Лопатинский сельсовет | C179: 22639432 | D179: сельское поселение
A180: Лукояновский муниципальный район | B180: Лукояновский муниципальный район | C180: 22639000 | D180: муниципальный район
A181: Лукояновский муниципальный район | B181: Рабочий поселок им Степана Разина | C181: 22639154 | D181: городское поселение, в состав которого входит поселок
A182: Лукояновский муниципальный район | B182: Тольско-Майданский сельсовет | C182: 22639464 | D182: сельское поселение
A183: Лукояновский муниципальный район | B183: Шандровский сельсовет | C183: 22639472 | D183: сельское поселение
A184: Лысковский муниципальный округ | B184: Лысковский муниципальный округ | C184: 22540000 | D184: муниципальный округ
A185: Навашинский | B185: Навашинский | C185: 22730000 | D185: городской округ
A186: Павловский муниципальный округ | B186: Павловский муниципальный округ | C186: 22542000 | D186: муниципальный округ
A187: Перевозский | B187: Перевозский | C187: 22739000 | D187: городской округ
A188: Пильнинский муниципальный район | B188: Большеандосовский сельсовет | C188: 22645408 | D188: сельское поселение
A189: Пильнинский муниципальный район | B189: Бортсурманский сельсовет | C189: 22645412 | D189: сельское поселение
A190: Пильнинский муниципальный район | B190: Деяновский сельсовет | C190: 22645416 | D190: сельское поселение
A191: Пильнинский муниципальный район | B191: Красногорский сельсовет | C191: 22645424 | D191: сельское поселение
A192: Пильнинский муниципальный район | B192: Курмышский сельсовет | C192: 22645428 | D192: сельское поселение
A193: Пильнинский муниципальный район | B193: Медянский сельсовет | C193: 22645432 | D193: сельское поселение
A194: Пильнинский муниципальный район | B194: Можаров-Майданский сельсовет | C194: 22645436 | D194: сельское поселение
A195: Пильнинский муниципальный район | B195: Новомочалеевский сельсовет | C195: 22645440 | D195: сельское поселение
A196: Пильнинский муниципальный район | B196: Петряксинский сельсовет | C196: 22645448 | D196: сельское поселение
A197: Пильнинский муниципальный район | B197: Пильнинский муниципальный район | C197: 22645000 | D197: муниципальный район
A198: Пильнинский муниципальный район | B198: Рабочий поселок Пильна | C198: 22645151 | D198: городское поселение, в состав которого входит поселок
A199: Пильнинский муниципальный район | B199: Тенекаевский сельсовет | C199: 22645456 | D199: сельское поселение
A200: Пильнинский муниципальный район | B200: Языковский сельсовет | C200: 22645460 | D200: сельское поселение
... 79 more rows

Sheet AUTHORISATION (hidden)
A1: L1 | B1: L2
A2: ACCESS GRANTED

Sheet OKTMO_HISTORY (hidden)
A1: MR_NAME | B1: MO_NAME | C1: OKTMO_NAME | D1: TYPE
A2: Ардатовский муниципальный округ | B2: Ардатовский муниципальный округ | C2: 22502000 | D2: муниципальный округ
A3: Ардатовский муниципальный район | B3: Ардатовский муниципальный район | C3: 22602000 | D3: муниципальный район
A4: Ардатовский муниципальный район | B4: Кужендеевский сельсовет | C4: 22602424 | D4: сельское поселение
A5: Ардатовский муниципальный район | B5: Личадеевский сельсовет | C5: 22602428 | D5: сельское поселение
A6: Ардатовский муниципальный район | B6: Михеевский сельсовет | C6: 22602432 | D6: сельское поселение
A7: Ардатовский муниципальный район | B7: Саконский сельсовет | C7: 22602436 | D7: сельское поселение
A8: Ардатовский муниципальный район | B8: Стексовский сельсовет | C8: 22602440 | D8: сельское поселение
A9: Ардатовский муниципальный район | B9: Хрипуновский сельсовет | C9: 22602444 | D9: сельское поселение
A10: Ардатовский муниципальный район | B10: Чуварлей-Майданский сельсовет | C10: 22602448 | D10: сельское поселение
A11: Ардатовский муниципальный район | B11: рабочий поселок Ардатов | C11: 22602151 | D11: городское поселение, в состав которого входит поселок
A12: Ардатовский муниципальный район | B12: рабочий поселок Мухтолово | C12: 22602155 | D12: городское поселение, в состав которого входит поселок
A13: Арзамасский муниципальный район | B13: Абрамовский сельсовет | C13: 22603404 | D13: сельское поселение
A14: Арзамасский муниципальный район | B14: Арзамасский муниципальный район | C14: 22603000 | D14: муниципальный район
A15: Арзамасский муниципальный район | B15: Балахонихинский сельсовет | C15: 22603408 | D15: сельское поселение
A16: Арзамасский муниципальный район | B16: Бебяевский сельсовет | C16: 22603456 | D16: сельское поселение
A17: Арзамасский муниципальный район | B17: Березовский сельсовет | C17: 22603410 | D17: сельское поселение
A18: Арзамасский муниципальный район | B18: Большетумановский сельсовет | C18: 22603412 | D18: сельское поселение
A19: Арзамасский муниципальный район | B19: Кирилловский сельсовет | C19: 22603424 | D19: сельское поселение
A20: Арзамасский муниципальный район | B20: Красносельский сельсовет | C20: 22603432 | D20: сельское поселение
A21: Арзамасский муниципальный район | B21: Ломовский сельсовет | C21: 22603440 | D21: сельское поселение
A22: Арзамасский муниципальный район | B22: Новоусадский сельсовет | C22: 22603452 | D22: сельское поселение
A23: Арзамасский муниципальный район | B23: Слизневский сельсовет | C23: 22603472 | D23: сельское поселение
A24: Арзамасский муниципальный район | B24: Чернухинский сельсовет | C24: 22603476 | D24: сельское поселение
A25: Арзамасский муниципальный район | B25: Шатовский сельсовет | C25: 22603480 | D25: сельское поселение
A26: Арзамасский муниципальный район | B26: рабочий поселок Выездное | C26: 22603155 | D26: городское поселение, в состав которого входит поселок
A27: Балахнинский муниципальный округ | B27: Балахнинский муниципальный округ | C27: 22505000 | D27: муниципальный округ
A28: Балахнинский муниципальный район | B28: Балахнинский муниципальный район | C28: 22605000 | D28: муниципальный район
A29: Балахнинский муниципальный район | B29: Коневский сельсовет | C29: 22605408 | D29: сельское поселение
A30: Балахнинский муниципальный район | B30: Кочергинский сельсовет | C30: 22605412 | D30: сельское поселение
A31: Балахнинский муниципальный район | B31: Шеляуховский сельсовет | C31: 22605416 | D31: сельское поселение
A32: Балахнинский муниципальный район | B32: город Балахна | C32: 22605101 | D32: городское поселение, в состав которого входит город
A33: Балахнинский муниципальный район | B33: рабочий поселок Большое Козино | C33: 22605153 | D33: городское поселение, в состав которого входит поселок
A34: Балахнинский муниципальный район | B34: рабочий поселок Гидроторф | C34: 22605155 | D34: городское поселение, в состав которого входит поселок
A35: Балахнинский муниципальный район | B35: рабочий поселок Малое Козино | C35: 22605158 | D35: городское поселение, в состав которого входит поселок
A36: Богородский муниципальный округ | B36: Богородский муниципальный округ | C36: 22507000 | D36: муниципальный округ
A37: Богородский муниципальный район | B37: Алешковский сельсовет | C37: 22607404 | D37: сельское поселение
A38: Богородский муниципальный район | B38: Богородский муниципальный район | C38: 22607000 | D38: муниципальный район
A39: Богородский муниципальный район | B39: Доскинский сельсовет | C39: 22607416 | D39: сельское поселение
A40: Богородский муниципальный район | B40: Дуденевский сельсовет | C40: 22607420 | D40: сельское поселение
A41: Богородский муниципальный район | B41: Каменский сельсовет | C41: 22607428 | D41: сельское поселение
A42: Богородский муниципальный район | B42: Новинский сельсовет | C42: 22607436 | D42: сельское поселение
A43: Богородский муниципальный район | B43: Хвощевский сельсовет | C43: 22607444 | D43: сельское поселение
A44: Богородский муниципальный район | B44: Шапкинский сельсовет | C44: 22607448 | D44: сельское поселение
A45: Богородский муниципальный район | B45: город Богородск | C45: 22607101 | D45: городское поселение, в состав которого входит город
A46: Большеболдинский муниципальный округ | B46: Большеболдинский муниципальный округ | C46: 22509000 | D46: муниципальный округ
A47: Большеболдинский муниципальный район | B47: Большеболдинский муниципальный район | C47: 22609000 | D47: муниципальный район
A48: Большеболдинский муниципальный район | B48: Большеболдинский сельсовет | C48: 22609404 | D48: сельское поселение
A49: Большеболдинский муниципальный район | B49: Молчановский сельсовет | C49: 22609416 | D49: сельское поселение
A50: Большеболдинский муниципальный район | B50: Новослободский сельсовет | C50: 22609420 | D50: сельское поселение
A51: Большеболдинский муниципальный район | B51: Пермеевский сельсовет | C51: 22609422 | D51: сельское поселение
A52: Большеболдинский муниципальный район | B52: Пикшенский сельсовет | C52: 22609424 | D52: сельское поселение
A53: Большеболдинский муниципальный район | B53: Черновской сельсовет | C53: 22609432 | D53: сельское поселение
A54: Большемурашкинский муниципальный округ | B54: Большемурашкинский муниципальный округ | C54: 22510000 | D54: муниципальный округ
A55: Большемурашкинский муниципальный район | B55: Большемурашкинский муниципальный район | C55: 22610000 | D55: муниципальный район
A56: Большемурашкинский муниципальный район | B56: Григоровский сельсовет | C56: 22610408 | D56: сельское поселение
A57: Большемурашкинский муниципальный район | B57: Советский сельсовет | C57: 22610404 | D57: сельское поселение
A58: Большемурашкинский муниципальный район | B58: Холязинский сельсовет | C58: 22610428 | D58: сельское поселение
A59: Большемурашкинский муниципальный район | B59: рабочий поселок Большое Мурашкино | C59: 22610151 | D59: городское поселение, в состав которого входит поселок
A60: Бутурлинский муниципальный округ | B60: Бутурлинский муниципальный округ | C60: 22512000 | D60: муниципальный округ
A61: Бутурлинский муниципальный район | B61: Большебакалдский сельсовет | C61: 22612404 | D61: сельское поселение
A62: Бутурлинский муниципальный район | B62: Бутурлинский муниципальный район | C62: 22612000 | D62: муниципальный район
A63: Бутурлинский муниципальный район | B63: Каменищенский сельсовет | C63: 22612412 | D63: сельское поселение
A64: Бутурлинский муниципальный район | B64: Кочуновский сельсовет | C64: 22612420 | D64: сельское поселение
A65: Бутурлинский муниципальный район | B65: Уваровский сельсовет | C65: 22612428 | D65: сельское поселение
A66: Бутурлинский муниципальный район | B66: Ягубовский сельсовет | C66: 22612432 | D66: сельское поселение
A67: Бутурлинский муниципальный район | B67: рабочий поселок Бутурлино | C67: 22612151 | D67: городское поселение, в состав которого входит поселок
A68: Вадский муниципальный округ | B68: Вадский муниципальный округ | C68: 22514000 | D68: муниципальный округ
A69: Вадский муниципальный район | B69: Вадский муниципальный район | C69: 22614000 | D69: муниципальный район
A70: Вадский муниципальный район | B70: Вадский сельсовет | C70: 22614404 | D70: сельское поселение
A71: Вадский муниципальный район | B71: Дубенский сельсовет | C71: 22614408 | D71: сельское поселение
A72: Вадский муниципальный район | B72: Круто-Майданский сельсовет | C72: 22614416 | D72: сельское поселение
A73: Вадский муниципальный район | B73: Лопатинский сельсовет | C73: 22614420 | D73: сельское поселение
A74: Вадский муниципальный район | B74: Новомирский сельсовет | C74: 22614424 | D74: сельское поселение
A75: Вадский муниципальный район | B75: Стрельский сельсовет | C75: 22614432 | D75: сельское поселение
A76: Варнавинский муниципальный округ | B76: Варнавинский муниципальный округ | C76: 22515000 | D76: муниципальный округ
A77: Варнавинский муниципальный район | B77: Богородский сельсовет | C77: 22615420 | D77: сельское поселение
A78: Варнавинский муниципальный район | B78: Варнавинский муниципальный район | C78: 22615000 | D78: муниципальный район
A79: Варнавинский муниципальный район | B79: Восходовский сельсовет | C79: 22615406 | D79: сельское поселение
A80: Варнавинский муниципальный район | B80: Михаленинский сельсовет | C80: 22615416 | D80: сельское поселение
A81: Варнавинский муниципальный район | B81: Северный сельсовет | C81: 22615428 | D81: сельское поселение
A82: Варнавинский муниципальный район | B82: Шудский сельсовет | C82: 22615430 | D82: сельское поселение
A83: Варнавинский муниципальный район | B83: рабочий поселок Варнавино | C83: 22615151 | D83: городское поселение, в состав которого входит поселок
A84: Вачский муниципальный округ | B84: Вачский муниципальный округ | C84: 22517000 | D84: муниципальный округ
A85: Вачский муниципальный район | B85: Арефинский сельсовет | C85: 22617408 | D85: сельское поселение
A86: Вачский муниципальный район | B86: Вачский муниципальный район | C86: 22617000 | D86: муниципальный район
A87: Вачский муниципальный район | B87: Казаковский сельсовет | C87: 22617424 | D87: сельское поселение
A88: Вачский муниципальный район | B88: Новосельский сельсовет | C88: 22617432 | D88: сельское поселение
A89: Вачский муниципальный район | B89: Филинский сельсовет | C89: 22617436 | D89: сельское поселение
A90: Вачский муниципальный район | B90: Чулковский сельсовет | C90: 22617440 | D90: сельское поселение
A91: Вачский муниципальный район | B91: рабочий поселок Вача | C91: 22617151 | D91: городское поселение, в состав которого входит поселок
A92: Ветлужский муниципальный округ | B92: Ветлужский муниципальный округ | C92: 22518000 | D92: муниципальный округ
A93: Ветлужский муниципальный район | B93: Ветлужский муниципальный район | C93: 22618000 | D93: муниципальный район
A94: Ветлужский муниципальный район | B94: Волыновский сельсовет | C94: 22618408 | D94: сельское поселение
A95: Ветлужский муниципальный район | B95: Крутцовский сельсовет | C95: 22618416 | D95: сельское поселение
A96: Ветлужский муниципальный район | B96: Макарьевский сельсовет | C96: 22618420 | D96: сельское поселение
A97: Ветлужский муниципальный район | B97: Мошкинский сельсовет | C97: 22618428 | D97: сельское поселение
A98: Ветлужский муниципальный район | B98: Новоуспенский сельсовет | C98: 22618432 | D98: сельское поселение
A99: Ветлужский муниципальный район | B99: Проновский сельсовет | C99: 22618436 | D99: сельское поселение
A100: Ветлужский муниципальный район | B100: Туранский сельсовет | C100: 22618444 | D100: сельское поселение
A101: Ветлужский муниципальный район | B101: город Ветлуга | C101: 22618101 | D101: городское поселение, в состав которого входит город
A102: Ветлужский муниципальный район | B102: рабочий поселок им М.И. Калинина | C102: 22618154 | D102: городское поселение, в состав которого входит поселок
A103: Вознесенский муниципальный округ | B103: Вознесенский муниципальный округ | C103: 22519000 | D103: муниципальный округ
A104: Вознесенский муниципальный район | B104: Бахтызинский сельсовет | C104: 22619408 | D104: сельское поселение
A105: Вознесенский муниципальный район | B105: Благодатовский сельсовет | C105: 22619412 | D105: сельское поселение
A106: Вознесенский муниципальный район | B106: Бутаковский сельсовет | C106: 22619416 | D106: сельское поселение
A107: Вознесенский муниципальный район | B107: Вознесенский муниципальный район | C107: 22619000 | D107: муниципальный район
A108: Вознесенский муниципальный район | B108: Криушинский сельсовет | C108: 22619420 | D108: сельское поселение
A109: Вознесенский муниципальный район | B109: Мотызлейский сельсовет | C109: 22619428 | D109: сельское поселение
A110: Вознесенский муниципальный район | B110: Нарышкинский сельсовет | C110: 22619432 | D110: сельское поселение
A111: Вознесенский муниципальный район | B111: Полховско-Майданский сельсовет | C111: 22619440 | D111: сельское поселение
A112: Вознесенский муниципальный район | B112: Сарминский сельсовет | C112: 22619444 | D112: сельское поселение
A113: Вознесенский муниципальный район | B113: рабочий поселок Вознесенское | C113: 22619151 | D113: городское поселение, в состав которого входит поселок
A114: Володарский муниципальный округ | B114: Володарский муниципальный округ | C114: 22520000 | D114: муниципальный округ
A115: Володарский муниципальный район | B115: Володарский муниципальный район | C115: 22631000 | D115: муниципальный район
A116: Володарский муниципальный район | B116: Золинский сельсовет | C116: 22631404 | D116: сельское поселение
A117: Володарский муниципальный район | B117: Ильинский сельсовет | C117: 22631408 | D117: сельское поселение
A118: Володарский муниципальный район | B118: Мулинский сельсовет | C118: 22631411 | D118: сельское поселение
A119: Володарский муниципальный район | B119: город Володарск | C119: 22631103 | D119: городское поселение, в состав которого входит город
A120: Володарский муниципальный район | B120: рабочий поселок Ильиногорск | C120: 22631160 | D120: городское поселение, в состав которого входит поселок
A121: Володарский муниципальный район | B121: рабочий поселок Решетиха | C121: 22631168 | D121: городское поселение, в состав которого входит поселок
A122: Володарский муниципальный район | B122: рабочий поселок Смолино | C122: 22631170 | D122: городское поселение, в состав которого входит поселок
A123: Володарский муниципальный район | B123: рабочий поселок Фролищи | C123: 22631173 | D123: городское поселение, в состав которого входит поселок
A124: Володарский муниципальный район | B124: рабочий поселок Центральный | C124: 22631176 | D124: городское поселение, в состав которого входит поселок
A125: Володарский муниципальный район | B125: рабочий поселок Юганец | C125: 22631179 | D125: городское поселение, в состав которого входит поселок
A126: Володарский муниципальный район | B126: сельсовет Красная Горка | C126: 22631402 | D126: сельское поселение
A127: Воротынский | B127: Воротынский | C127: 22719000 | D127: городской округ
A128: Воротынский муниципальный район | B128: Белавский сельсовет | C128: 22621408 | D128: сельское поселение
A129: Воротынский муниципальный район | B129: Воротынский муниципальный район | C129: 22621000 | D129: муниципальный район
A130: Воротынский муниципальный район | B130: Каменский сельсовет | C130: 22621416 | D130: сельское поселение
A131: Воротынский муниципальный район | B131: Красногорский сельсовет | C131: 22621420 | D131: сельское поселение
A132: Воротынский муниципальный район | B132: Михайловский сельсовет | C132: 22621424 | D132: сельское поселение
A133: Воротынский муниципальный район | B133: Огнев-Майданский сельсовет | C133: 22621428 | D133: сельское поселение
A134: Воротынский муниципальный район | B134: Отарский сельсовет | C134: 22621432 | D134: сельское поселение
A135: Воротынский муниципальный район | B135: Семьянский сельсовет | C135: 22621444 | D135: сельское поселение
A136: Воротынский муниципальный район | B136: Фокинский сельсовет | C136: 22621448 | D136: сельское поселение
A137: Воротынский муниципальный район | B137: Чугуновский сельсовет | C137: 22621452 | D137: сельское поселение
A138: Воротынский муниципальный район | B138: рабочий поселок Васильсурск | C138: 22621154 | D138: городское поселение, в состав которого входит поселок
A139: Воротынский муниципальный район | B139: рабочий поселок Воротынец | C139: 22621151 | D139: городское поселение, в состав которого входит поселок
A140: Воскресенский муниципальный округ | B140: Воскресенский муниципальный округ | C140: 22522000 | D140: муниципальный округ
A141: Воскресенский муниципальный район | B141: Благовещенский сельсовет | C141: 22622404 | D141: сельское поселение
A142: Воскресенский муниципальный район | B142: Богородский сельсовет | C142: 22622408 | D142: сельское поселение
A143: Воскресенский муниципальный район | B143: Владимирский сельсовет | C143: 22622416 | D143: сельское поселение
A144: Воскресенский муниципальный район | B144: Воздвиженский сельсовет | C144: 22622420 | D144: сельское поселение
A145: Воскресенский муниципальный район | B145: Воскресенский муниципальный район | C145: 22622000 | D145: муниципальный район
A146: Воскресенский муниципальный район | B146: Глуховский сельсовет | C146: 22622424 | D146: сельское поселение
A147: Воскресенский муниципальный район | B147: Егоровский сельсовет | C147: 22622432 | D147: сельское поселение
A148: Воскресенский муниципальный район | B148: Капустихинский сельсовет | C148: 22622440 | D148: сельское поселение
A149: Воскресенский муниципальный район | B149: Нахратовский сельсовет | C149: 22622452 | D149: сельское поселение
A150: Воскресенский муниципальный район | B150: Нестиарский сельсовет | C150: 22622456 | D150: сельское поселение
A151: Воскресенский муниципальный район | B151: Староустинский сельсовет | C151: 22622460 | D151: сельское поселение
A152: Воскресенский муниципальный район | B152: рабочий поселок Воскресенское | C152: 22622151 | D152: городское поселение, в состав которого входит поселок
A153: Гагинский муниципальный округ | B153: Гагинский муниципальный округ | C153: 22526000 | D153: муниципальный округ
A154: Гагинский муниципальный район | B154: Большеаратский сельсовет | C154: 22626404 | D154: сельское поселение
A155: Гагинский муниципальный район | B155: Ветошкинский сельсовет | C155: 22626408 | D155: сельское поселение
A156: Гагинский муниципальный район | B156: Гагинский муниципальный район | C156: 22626000 | D156: муниципальный район
A157: Гагинский муниципальный район | B157: Гагинский сельсовет | C157: 22626412 | D157: сельское поселение
A158: Гагинский муниципальный район | B158: Покровский сельсовет | C158: 22626432 | D158: сельское поселение
A159: Гагинский муниципальный район | B159: Ушаковский сельсовет | C159: 22626440 | D159: сельское поселение
A160: Гагинский муниципальный район | B160: Юрьевский сельсовет | C160: 22626444 | D160: сельское поселение
A161: Городецкий муниципальный округ | B161: Городецкий муниципальный округ | C161: 22528000 | D161: муниципальный округ
A162: Городецкий муниципальный район | B162: Бриляковский сельсовет | C162: 22628404 | D162: сельское поселение
A163: Городецкий муниципальный район | B163: Городецкий муниципальный район | C163: 22628000 | D163: муниципальный район
A164: Городецкий муниципальный район | B164: Зиняковский сельсовет | C164: 22628416 | D164: сельское поселение
A165: Городецкий муниципальный район | B165: Ковригинский сельсовет | C165: 22628422 | D165: сельское поселение
A166: Городецкий муниципальный район | B166: Кумохинский сельсовет | C166: 22628428 | D166: сельское поселение
A167: Городецкий муниципальный район | B167: Николо-Погостинский сельсовет | C167: 22628442 | D167: сельское поселение
A168: Городецкий муниципальный район | B168: Смиркинский сельсовет | C168: 22628444 | D168: сельское поселение
A169: Городецкий муниципальный район | B169: Смольковский сельсовет | C169: 22628448 | D169: сельское поселение
A170: Городецкий муниципальный район | B170: Тимирязевский сельсовет | C170: 22628452 | D170: сельское поселение
A171: Городецкий муниципальный район | B171: Федуринский сельсовет | C171: 22628458 | D171: сельское поселение
A172: Городецкий муниципальный район | B172: город Городец | C172: 22628101 | D172: городское поселение, в состав которого входит город
A173: Городецкий муниципальный район | B173: город Заволжье | C173: 22628103 | D173: городское поселение, в состав которого входит город
A174: Городецкий муниципальный район | B174: рабочий поселок Первомайский | C174: 22628154 | D174: городское поселение, в состав которого входит поселок
A175: Дальнеконстантиновский муниципальный округ | B175: Дальнеконстантиновский муниципальный округ | C175: 22530000 | D175: муниципальный округ
A176: Дальнеконстантиновский муниципальный район | B176: Белозеровский сельсовет | C176: 22630408 | D176: сельское поселение
A177: Дальнеконстантиновский муниципальный район | B177: Богоявленский сельсовет | C177: 22630412 | D177: сельское поселение
A178: Дальнеконстантиновский муниципальный район | B178: Дальнеконстантиновский муниципальный район | C178: 22630000 | D178: муниципальный район
A179: Дальнеконстантиновский муниципальный район | B179: Дубравский сельсовет | C179: 22630444 | D179: сельское поселение
A180: Дальнеконстантиновский муниципальный район | B180: Кужутский сельсовет | C180: 22630428 | D180: сельское поселение
A181: Дальнеконстантиновский муниципальный район | B181: Малопицкий сельсовет | C181: 22630430 | D181: сельское поселение
A182: Дальнеконстантиновский муниципальный район | B182: Нижегородский сельсовет | C182: 22630420 | D182: сельское поселение
A183: Дальнеконстантиновский муниципальный район | B183: Сарлейский сельсовет | C183: 22630440 | D183: сельское поселение
A184: Дальнеконстантиновский муниципальный район | B184: Суроватихинский сельсовет | C184: 22630448 | D184: сельское поселение
A185: Дальнеконстантиновский муниципальный район | B185: Тепелевский сельсовет | C185: 22630456 | D185: сельское поселение
A186: Дальнеконстантиновский муниципальный район | B186: рабочий поселок Дальнее Константиново | C186: 22630151 | D186: городское поселение, в состав которого входит поселок
A187: Дивеевский муниципальный округ | B187: Дивеевский муниципальный округ | C187: 22532000 | D187: муниципальный округ
A188: Дивеевский муниципальный район | B188: Верякушский сельсовет | C188: 22632408 | D188: сельское поселение
A189: Дивеевский муниципальный район | B189: Глуховский сельсовет | C189: 22632412 | D189: сельское поселение
A190: Дивеевский муниципальный район | B190: Дивеевский муниципальный район | C190: 22632000 | D190: муниципальный район
A191: Дивеевский муниципальный район | B191: Дивеевский сельсовет | C191: 22632416 | D191: сельское поселение
A192: Дивеевский муниципальный район | B192: Елизарьевский сельсовет | C192: 22632420 | D192: сельское поселение
A193: Дивеевский муниципальный район | B193: Ивановский сельсовет | C193: 22632424 | D193: сельское поселение
A194: Дивеевский муниципальный район | B194: Сатисский сельсовет | C194: 22632432 | D194: сельское поселение
A195: ЗАТО город Саров | B195: ЗАТО город Саров | C195: 22704000 | D195: городской округ
A196: Княгининский муниципальный округ | B196: Княгининский муниципальный округ | C196: 22533000 | D196: муниципальный округ
A197: Княгининский муниципальный район | B197: Ананьевский сельсовет | C197: 22633404 | D197: сельское поселение
A198: Княгининский муниципальный район | B198: Белкинский сельсовет | C198: 22633408 | D198: сельское поселение
A199: Княгининский муниципальный район | B199: Возрожденский сельсовет | C199: 22633416 | D199: сельское поселение
A200: Княгининский муниципальный район | B200: Княгининский муниципальный район | C200: 22633000 | D200: муниципальный район
... 255 more rows

Sheet RPT_STATISTICS (hidden)
A1: REGION_ID | B1: OKTMO_ID | C1: INN_ID | D1: KPP_ID | E1: FIL_ID | F1: VDET_ID | G1: PRD2_NAME | H1: RPT_DATE | I1: RPT_STATUS | J1: V_STEAM | K1: C_STEAM | L1: V_WATER | M1: C_WATER
A2: 2634 | B2: 5136468 | C2: 5158839 | D2: 5431564 | E2: 5412526 | F2: 2386758237 | G2: Январь | H2: 25-02-2022 13:28:20 | I2: Принят | J2: 31.89 | K2: 88129.28 | L2: 18951.178 | M2: 41377032.64
A3: 2634 | B3: 5136468 | C3: 5158839 | D3: 5431564 | E3: 5412526 | F3: 2386758237 | G3: Февраль | H3: 25-03-2022 11:10:53 | I3: Принят | J3: 31.89 | K3: 88129.28 | L3: 12200.474 | M3: 26755341.34
A4: 2634 | B4: 5136468 | C4: 5158839 | D4: 5431564 | E4: 5412526 | F4: 2386758237 | G4: Апрель | H4: 24-05-2022 14:31:51 | I4: Принят | J4: 31.89 | K4: 88129.28 | L4: 10313.63 | M4: 22765449.04
A5: 2634 | B5: 5136468 | C5: 5158839 | D5: 5431564 | E5: 5412526 | F5: 2386758237 | G5: Май | H5: 28-06-2022 09:57:08 | I5: Принят | J5: 31.89 | K5: 88129.28 | L5: 9118.412 | M5: 20159060.14
A6: 2634 | B6: 5136468 | C6: 5158839 | D6: 5431564 | E6: 5412526 | F6: 2386758237 | G6: Март | H6: 25-04-2022 13:57:00 | I6: Принят | J6: 31.89 | K6: 88129.28 | L6: 11486.12 | M6: 25315738.91
A7: 2634 | B7: 5136468 | C7: 5158839 | D7: 5431564 | E7: 5412526 | F7: 2386758237 | G7: Июнь | H7: 26-07-2022 08:02:24 | I7: Принят | J7: 28.295 | K7: 78195.88 | L7: 7027.006 | M7: 15563735.94
A8: 2634 | B8: 5136468 | C8: 5158839 | D8: 5431564 | E8: 5412526 | F8: 2386758237 | G8: Июль | H8: 24-08-2022 14:04:59 | I8: Принят | J8: 22.96 | K8: 66091.78 | L8: 7021.669 | M8: 16206091.44
A9: 2634 | B9: 5136468 | C9: 5158839 | D9: 5431564 | E9: 5412526 | F9: 2386758237 | G9: Август | H9: 28-09-2022 09:39:27 | I9: Принят | J9: 31.963 | K9: 92006.59 | L9: 7119.413 | M9: 16479756.05
A10: 2634 | B10: 5136468 | C10: 5158839 | D10: 5431564 | E10: 5412526 | F10: 2386758237 | G10: Сентябрь | H10: 21-10-2022 11:11:17 | I10: Принят | J10: 31.963 | K10: 92006.59 | L10: 7446.23 | M10: 17208247.63

Sheet DICTIONARIES (hidden)
A1: DIC_NAME | B1: DIC_VALUE | C1: YEAR_NAME | D1: MONTH_NAME
A2: MAX_PRICE | B2: 50000 | C2: 2022 | D2: ALL
A3: MIN_PRICE | B3: 50 | C3: 2022 | D3: ALL
A4: OKTMO_COULD_BE_UNLOCKED | B4: NO | C4: 2022 | D4: ALL
A5: REPORT_EXISTENCE_STATUS | B5: ERROR | C5: 2022 | D5: ALL
A6: REPORT_MONTH_ABSENCE | B6: (M01)Y(M02)Y(M03)Y(M04)Y(M05)Y(M06)Y(M07)Y(M08)Y(M09)Y(M10)Y(M11)Y(M12)Y | C6: 2022 | D6: ALL
A7: REPORT_OVERDUE_INTERVAL | B7: 90 | C7: 2022 | D7: ALL
A8: REPORT_YEAR_CONSISTENCY_STATUS | B8: ERROR | C8: 2022 | D8: ALL
A9: REPORT_YEAR_LESS_MONTH_STATUS | B9: ERROR | C9: 2022 | D9: ALL
A10: SUBSIDIARY_COULD_BE_UNLOCKED | B10: NO | C10: 2022 | D10: ALL
A11: TOTAL_ISSUE_IS_NEGATIVE | B11: ERROR | C11: 2022 | D11: ALL
A12: SUBSIDIARY_LIST | B12: Арзамасский филиал | C12: 2022 | D12: Октябрь
A13: SUBSIDIARY_LIST | B13: Нижегородская ГРЭС | C13: 2022 | D13: Октябрь
A14: SUBSIDIARY_LIST | B14: Нижегородский областной радиотелевизионный передающий центр | C14: 2022 | D14: Октябрь
A15: SUBSIDIARY_LIST | B15: Новогорьковская ТЭЦ | C15: 2022 | D15: Октябрь
A16: SUBSIDIARY_LIST | B16: Новогорьковская ТЭЦ, квартальные сети | C16: 2022 | D16: Октябрь
A17: SUBSIDIARY_LIST | B17: Новогорьковская ТЭЦ, магистральные сети | C17: 2022 | D17: Октябрь
A18: SUBSIDIARY_LIST | B18: Отпуск по нерегулируемым ценам | C18: 2022 | D18: Октябрь
A19: SUBSIDIARY_LIST | B19: Сормовская ТЭЦ | C19: 2022 | D19: Октябрь
A20: SUBSIDIARY_LIST | B20: Филиал ОАО "Газпром трансгаз" Семеновское ЛПУ МГ | C20: 2022 | D20: Октябрь
A21: SUBSIDIARY_LIST | B21: Филиал ФГУП "РФЯЦ-ВНИИЭФ" "НИИИС им. Ю.Е. Седакова" | C21: 2022 | D21: Октябрь
A22: SUBSIDIARY_LIST | B22: город Арзамас | C22: 2022 | D22: Октябрь
A23: SUBSIDIARY_LIST | B23: город Чкаловск | C23: 2022 | D23: Октябрь

Sheet Лог обновления (hidden)
A2: 3/17/2012 12:12:41 AM | B2: Дата/Время | C2: Сообщение | D2: Статус
B3: 2/10/2022 4:39:36 PM | C3: Проверка доступных обновлений... | D3: Информация
B4: 2/10/2022 4:39:38 PM | C4: Нет доступных обновлений для отчёта с кодом 46TE.STX! | D4: Информация
B5: 2/10/2022 4:45:36 PM | C5: Проверка доступных обновлений... | D5: Информация
B6: 2/10/2022 4:45:37 PM | C6: Нет доступных обновлений для отчёта с кодом 46TE.STX! | D6: Информация
B7: 2/24/2022 10:54:32 AM | C7: Проверка доступных обновлений... | D7: Информация
B8: 2/24/2022 10:54:35 AM | C8: Нет доступных обновлений для отчёта с кодом 46TE.STX! | D8: Информация
B9: 2/25/2022 1:17:05 PM | C9: Проверка доступных обновлений... | D9: Информация
B10: 2/25/2022 1:17:06 PM | C10: Нет доступных обновлений для отчёта с кодом 46TE.STX! | D10: Информация
B11: 3/11/2022 10:36:45 AM | C11: Проверка доступных обновлений... | D11: Информация
B12: 3/11/2022 10:36:46 AM | C12: Нет доступных обновлений для отчёта с кодом 46TE.STX! | D12: Информация
B13: 3/25/2022 9:26:26 AM | C13: Проверка доступных обновлений... | D13: Информация
B14: 3/25/2022 9:26:37 AM | C14: Нет доступных обновлений для отчёта с кодом 46TE.STX! | D14: Информация
B15: 3/25/2022 10:59:56 AM | C15: Проверка доступных обновлений... | D15: Информация
B16: 3/25/2022 10:59:58 AM | C16: Нет доступных обновлений для отчёта с кодом 46TE.STX! | D16: Информация
B17: 4/13/2022 2:29:49 PM | C17: Проверка доступных обновлений... | D17: Информация
B18: 4/13/2022 2:29:51 PM | C18: Нет доступных обновлений для отчёта с кодом 46TE.STX! | D18: Информация
B19: 4/20/2022 3:34:00 PM | C19: Проверка доступных обновлений... | D19: Информация
B20: 4/20/2022 3:34:03 PM | C20: Нет доступных обновлений для отчёта с кодом 46TE.STX! | D20: Информация
B21: 4/25/2022 1:43:56 PM | C21: Проверка доступных обновлений... | D21: Информация
B22: 4/25/2022 1:43:57 PM | C22: Нет доступных обновлений для отчёта с кодом 46TE.STX! | D22: Информация
B23: 5/5/2022 11:31:14 AM | C23: Проверка доступных обновлений... | D23: Информация
B24: 5/5/2022 11:31:16 AM | C24: Нет доступных обновлений для отчёта с кодом 46TE.STX! | D24: Информация
B25: 5/24/2022 2:05:25 PM | C25: Проверка доступных обновлений... | D25: Информация
B26: 5/24/2022 2:05:28 PM | C26: Нет доступных обновлений для отчёта с кодом 46TE.STX! | D26: Информация
B27: 5/24/2022 2:17:47 PM | C27: Проверка доступных обновлений... | D27: Информация
B28: 5/24/2022 2:17:48 PM | C28: Нет доступных обновлений для отчёта с кодом 46TE.STX! | D28: Информация
B29: 6/6/2022 9:14:25 AM | C29: Проверка доступных обновлений... | D29: Информация
B30: 6/6/2022 9:14:27 AM | C30: Нет доступных обновлений для отчёта с кодом 46TE.STX! | D30: Информация
B31: 6/14/2022 9:48:43 AM | C31: Проверка доступных обновлений... | D31: Информация
B32: 6/14/2022 9:48:44 AM | C32: Нет доступных обновлений для отчёта с кодом 46TE.STX! | D32: Информация
B33: 6/28/2022 9:35:37 AM | C33: Проверка доступных обновлений... | D33: Информация
B34: 6/28/2022 9:35:40 AM | C34: Нет доступных обновлений для отчёта с кодом 46TE.STX! | D34: Информация
B35: 6/28/2022 9:40:58 AM | C35: Проверка доступных обновлений... | D35: Информация
B36: 6/28/2022 9:40:59 AM | C36: Нет доступных обновлений для отчёта с кодом 46TE.STX! | D36: Информация
B37: 7/4/2022 9:40:48 AM | C37: Проверка доступных обновлений... | D37: Информация
B38: 7/4/2022 9:40:50 AM | C38: Нет доступных обновлений для отчёта с кодом 46TE.STX! | D38: Информация
B39: 7/14/2022 9:12:20 AM | C39: Проверка доступных обновлений... | D39: Информация
B40: 7/14/2022 9:12:22 AM | C40: Нет доступных обновлений для отчёта с кодом 46TE.STX! | D40: Информация
B41: 7/20/2022 11:15:15 AM | C41: Проверка доступных обновлений... | D41: Информация
B42: 7/20/2022 11:15:18 AM | C42: Нет доступных обновлений для отчёта с кодом 46TE.STX! | D42: Информация
B43: 8/8/2022 2:45:53 PM | C43: Проверка доступных обновлений... | D43: Информация
B44: 8/8/2022 2:45:55 PM | C44: Нет доступных обновлений для отчёта с кодом 46TE.STX! | D44: Информация
B45: 8/8/2022 2:46:49 PM | C45: Проверка доступных обновлений... | D45: Информация
B46: 8/8/2022 2:46:51 PM | C46: Нет доступных обновлений для отчёта с кодом 46TE.STX! | D46: Информация
B47: 8/8/2022 2:48:41 PM | C47: Проверка доступных обновлений... | D47: Информация
B48: 8/8/2022 2:48:42 PM | C48: Нет доступных обновлений для отчёта с кодом 46TE.STX! | D48: Информация
B49: 8/22/2022 1:00:02 PM | C49: Проверка доступных обновлений... | D49: Информация
B50: 8/22/2022 1:00:04 PM | C50: Нет доступных обновлений для отчёта с кодом 46TE.STX! | D50: Информация
B51: 8/24/2022 1:30:45 PM | C51: Проверка доступных обновлений... | D51: Информация
B52: 8/24/2022 1:30:47 PM | C52: Нет доступных обновлений для отчёта с кодом 46TE.STX! | D52: Информация
B53: 8/24/2022 1:54:08 PM | C53: Проверка доступных обновлений... | D53: Информация
B54: 8/24/2022 1:54:10 PM | C54: Нет доступных обновлений для отчёта с кодом 46TE.STX! | D54: Информация
B55: 9/12/2022 11:33:24 AM | C55: Проверка доступных обновлений... | D55: Информация
B56: 9/12/2022 11:33:25 AM | C56: Нет доступных обновлений для отчёта с кодом 46TE.STX! | D56: Информация
B57: 9/12/2022 11:36:39 AM | C57: Проверка доступных обновлений... | D57: Информация
B58: 9/12/2022 11:36:40 AM | C58: Нет доступных обновлений для отчёта с кодом 46TE.STX! | D58: Информация
B59: 9/12/2022 11:40:10 AM | C59: Проверка доступных обновлений... | D59: Информация
B60: 9/12/2022 11:40:11 AM | C60: Нет доступных обновлений для отчёта с кодом 46TE.STX! | D60: Информация
B61: 9/12/2022 11:41:56 AM | C61: Проверка доступных обновлений... | D61: Информация
B62: 9/12/2022 11:41:57 AM | C62: Нет доступных обновлений для отчёта с кодом 46TE.STX! | D62: Информация
B63: 11/23/2022 1:44:35 PM | C63: Проверка доступных обновлений... | D63: Информация
B64: 11/23/2022 1:44:38 PM | C64: Нет доступных обновлений для отчёта с кодом 46TE.STX! | D64: Информация
B65: 11/25/2022 8:33:59 AM | C65: Проверка доступных обновлений... | D65: Информация
B66: 11/25/2022 8:34:01 AM | C66: Нет доступных обновлений для отчёта с кодом 46TE.STX! | D66: Информация
B67: 2/1/2023 10:49:44 AM | C67: Проверка доступных обновлений... | D67: Информация
B68: 2/1/2023 10:49:45 AM | C68: Нет доступных обновлений для отчёта с кодом 46TE.STX! | D68: Информация

Sheet modInfo (hidden)
B2: Сроки предоставления: • Отчёт за месяц необходимо представить до 30 числа после отчётного месяца • Отчёт за год необходимо представить до 1 марта • В случае отсутствия полезного отпуска за отчётный месяц (летний месяц, неотопительный период) отчёт необходимо предоставить в ФАС России, оставив диапазоны с объёмами незаполненными (пустыми)
B3: Отчитывающаяся организация: • Вызов формы выбора организации осуществляется двойным щелчком мыши • Выбор организации осуществляется из общего перечня организаций в сфере теплоснабжения, который поддерживается региональными органами регулирования
B4: Указание ссылки на документ: • Вызов меню для ввода ссылки осуществляется правой кнопкой мыши • В поле необходимо указать URL-ссылку на пояснительную записку (документ) в случае, если срок представления отчёта за период истёк
B5: • Срок предоставления отчётности за истекший период составляет не более указанного количества дней с первого числа месяца, следующего за отчётным • По истечении этого срока отчётность может быть предоставлена только с приложением пояснительной записки, в которой следует указать причину несоблюдения сроков или причину повторного направления отчётности за истекший период
B7: Нет доступных обновлений, версия отчёта актуальна

Sheet modHelp (hidden)
B10: • определяется по каждой группе потребителей в соответствии с порядком определения объёма (количества) потреблённой ТЭ исходя из показаний приборов учёта (технических средств измерений)
B11: • определяется по каждой группе потребителей в соответствии с порядком определения объёма (количества) потреблённой ТЭ исходя из нормативов потребления коммунальных услуг (в соответствии с Правилами коммерческого учёта тепловой энергии, теплоносителя, утверждёнными постановлением Правительства Российской Федерации от 18.11.2013 N 1034, Правилами предоставления коммунальных услуг собственникам и пользователям помещений в многоквартирных и жилых домах, утверждёнными постановлением Правительства Российской Федерации от 06.05.2011 N 354) • не приводятся сведения об объёме полезного отпуска ТЭ в случае оплаты равномерно в течение календарного года в отсутствие отопительного периода
B12: • приводятся сведения об объёме ТЭ в случае проведения перерасчёта, который осуществляется один раз в год, и который определяется расчётным способом в соответствии с Правилами предоставления коммунальных услуг собственникам и пользователям помещений в многоквартирных домах и жилых домов
B13: • приводятся сведения о стоимости ТЭ (без НДС), определенной на основании счетов-фактур, выписанных потребителям в соответствии с договорами на теплоснабжение за отчётный период, в том числе в случае оплаты ТЭ равномерно в течение календарного года в отсутствие отопительного периода • специальные субвенции, субсидии, направленные на снижение тарифов на энергию, выделяемые из бюджетов всех уровней, в стоимость не включаются • данные приводятся без учёта повышающих коэффициентов к тарифам и нормативам в сфере теплоснабжения
B14: • приводятся сведения о стоимости ТЭ (без НДС), определенной на основании счетов-фактур, выписанных потребителям в соответствии с договорами на теплоснабжение за отчётный период, в том числе в случае оплаты ТЭ равномерно в течение календарного года в отсутствие отопительного периода • специальные субвенции, субсидии, направленные на снижение тарифов на энергию, выделяемые из бюджетов всех уровней, в стоимость не включаются • данные приводятся без учёта повышающих коэффициентов к тарифам и нормативам в сфере теплоснабжения
B15: • приводятся сведения о стоимости ТЭ (без НДС) в случае проведения перерасчёта, который осуществляется один раз в год, и который определяется расчётным способом в соответствии с Правилами предоставления коммунальных услуг собственникам и пользователям помещений в многоквартирных домах и жилых домов
B20: • исполнители коммунальных услуг - юридическое лицо независимо от организационно-правовой формы или индивидуальный предприниматель, предоставляющие потребителю коммунальные услуги
B21: • отражается информация, предоставляемая организациями, осуществляющими отпуск ТЭ на нужды отопления населению и исполнителям коммунальных услуг
B22: • отражается информация, предоставляемая организациями, осуществляющими отпуск ТЭ на нужды горячего водоснабжения населению и исполнителям коммунальных услуг, то есть объёмы и стоимость ТЭ, отпускаемой на подогрев воды для нужд горячего водоснабжения, определяемые в соответствии с тарифными решениями регионального органа регулирования об установлении тарифов на тепловую энергию
B23: • отражается полезный отпуск ТЭ теплосетевым и теплоснабжающим организациям для последующей продажи потребителям ТЭ
B24: • отражается объём потерь ТЭ, приобретаемый теплосетевой организацией, для оказания услуг по передаче ТЭ
B25: • отражается объём ТЭ, который используется на собственное производство энергоснабжающей организации (за исключением потерь ТЭ на собственное производство источника теплоснабжения и потерь в тепловых сетях организации) и не реализуется сторонним потребителям

Sheet modCommonProcedures (hidden)

Sheet Титульный
E4: - обновление индикаторов проверки отчёта | H4: Форма № 46-ТЭ (полезный отпуск) Утверждена приказом Росстата №848 от 23.12.2016 | O4: REG
E5: Сведения о полезном отпуске (продаже) тепловой энергии отдельным категориям потребителей
E7: Субъект РФ | H7: Нижегородская область
E9: Отчётный период | F9: Год | H9: 2022
F10: Месяц | H10: Октябрь | O10: =IF(LEN(H10)=0,0,VLOOKUP(H10,MONTH_VS_SEQUENCE_LIST,2,FALSE)) -> 10
E12: Тип отчётного месяца | H12: отопительный
E15: Муниципальный район | H15: Городецкий муниципальный район
E16: Муниципальное образование | H16: город Городец
E17: ОКТМО | H17: 22628101 | O17: 5136468
E18: Тип муниципального образования | H18: =IF(LEN(H17)=0,"",VLOOKUP(H17,OKTMO_HISTORY_VS_TYPE_LIST,2,FALSE)) -> городское поселение, в состав которого входит город
E20: DATA_SOURCE | H20: RST
E21: RST_ORG_ID | H21: 26358322
E23: ="Наименование " & IF(H26="отсутствует","индивидуального предпринимателя","юридического лица") -> Наименование юридического лица | H23: МУП "Тепловые сети"
E24: Наименование обособленного подразделения | O24: 5412526
E25: ИНН | H25: 5248011350 | O25: 5158839
E26: КПП | H26: 524801001 | O26: 5431564
E27: Код по ОКПО | H27: 43033168
E28: Вид(-ы) деятельности организации | H28: Некомбинированное производство :: Передача :: Сбыт | O28: 2386758237
E29: Наличие статуса ЕТО | H29: да
E30: Утверждённый тариф | H30: одноставочный
E32: =IF(H20="RST","Организация выбрана из единого реестра ФАС России",IF(H20="UNR","Организация выбрана из перечня по нерегулируемым ценам","")) -> Организация выбрана из единого реестра ФАС России
E34: Система налогообложения | H34: ОСН
E36: Наличие соглашений сторон по нерегулируемым ценам | H36: нет
E38: =IF(LEN(O4)=0,"(режим работы с отчётом не выбран)",VLOOKUP(O4,REPORT_MODE_LIST,2,FALSE)) -> Организация оказывает услуги по тарифам, подлежащим государственному регулированию
E39: Контактные данные
E41: Адреса организации | F41: Юридический | H41: 606505, Нижегородская обл., г.Городец, ул.М.Горького, д.68
F42: Почтовый | H42: 606505, Нижегородская обл., г.Городец, ул.М.Горького, д.68
E44: Руководитель | F44: ФИО | H44: Фарафонов Вадим Викторович
F45: Контактный телефон | H45: 883161 92588
E47: Главный бухгалтер | F47: ФИО | H47: Коняева Оксана Александровна
F48: Контактный телефон | H48: 883161-92728
E50: Должностное лицо, ответственное за составление формы | F50: ФИО | H50: Конюхов Михаил Валентинович
F51: Должность | H51: главный экономист
F52: Контактный телефон | H52: 8 831 61 93325
F53: e-mail | H53: econ@mupts-grd.ru
E55: Дата последнего обновления реестра МР/МО/ОКТМО: 25.11.2022 8:34:26
E56: Дата последнего обновления данных реестра организаций: 25.11.2022 8:34:41
E58: Дата последнего обновления данных индикаторов проверки отчёта: 25.11.2022 8:34:08
E60: Если срок представления отчёта за период истёк, необходимо указать URL-ссылку на пояснительную записку (документ)
E62: Образец пояснительной записки (документа) можно скачать по ссылке | H62: Загрузить
E64: Сохранять отчёт в формате XLSB | H64: a
E66: Максимальный интервал представления отчёта за прошедшие периоды, дней | H66: 90

Sheet Отпуск ТЭ
I2: L1 | J2: L1.1 | L2: L1.2 | M2: L2 | N2: L2.1 | CA2: L2.2 | DZ2: L2.2 | EA2: L3 | EB2: L3.1 | EC2: L3.2 | ED2: L4 | EE2: L4.1 | EF2: L4.2
D4: Полезный отпуск теплоэнергии в горячей воде и в паре | J4: Коды по ОКЕИ: гигакалорий - 233, рубль - 383 | T4: Статус / дата отчёта | U4: Принят | V4: Статус / дата отчёта | W4: Принят | X4: Статус / дата отчёта | Y4: Принят | Z4: Статус / дата отчёта | AA4: Принят | AB4: Статус / дата отчёта | AC4: Принят | AD4: Статус / дата отчёта | AE4: Принят | AF4: Статус / дата отчёта | AG4: Принят | AH4: Статус / дата отчёта | AI4: Принят | AJ4: Статус / дата отчёта | AK4: Принят | AL4: Статус / дата отчёта | AN4: Статус / дата отчёта | AP4: Статус / дата отчёта
U5: 25-02-2022 13:28:20 | W5: 25-03-2022 11:10:53 | Y5: 25-04-2022 13:57:00 | AA5: 24-05-2022 14:31:51 | AC5: 28-06-2022 09:57:08 | AE5: 26-07-2022 08:02:24 | AG5: 24-08-2022 14:04:59 | AI5: 28-09-2022 09:39:27 | AK5: 21-10-2022 11:11:17
D7: Теплоноситель | E7: № п/п | F7: Наименование (ТЭ - тепловая энергия) | I7: ="Отчётный период: " & IF(Титульный!H10="","",Титульный!H10) & ", " & IF(Титульный!H9="","",Титульный!H9) -> Отчётный период: Октябрь, 2022 | R7: Комментарии | T7: Данные предыдущих отчётных периодов | DG7: SUM F46 VOLUME | DH7: SUM F46 COST | DI7: YEAR F46 RESULT VOLUME | DJ7: YEAR F46 RESULT COST | DL7: MONTH | DM7: 1 | DN7: 2 | DO7: 3 | DP7: 4 | DQ7: 5 | DR7: 6 | DS7: 7 | DT7: 8 | DU7: 9 | DV7: 10 | DW7: 11 | DX7: 12
T8: Январь | V8: Февраль | X8: Март | Z8: Апрель | AB8: Май | AD8: Июнь | AF8: Июль | AH8: Август | AJ8: Сентябрь | AL8: Октябрь | AN8: Ноябрь | AP8: Декабрь | DL8: DEFINED | DM8: =IF(MONTH_SEQUENCE>DM7,"Y","") -> Y | DN8: Y | DO8: Y | DP8: Y | DQ8: Y | DR8: Y | DS8: Y | DT8: Y | DU8: Y
I9: Объём отпуска ТЭ, Гкал | M9: Стоимость (без НДС) отпущенной ТЭ, руб. | T9: Объём отпуска ТЭ, Гкал | U9: Стоимость (без НДС) отпущенной ТЭ, руб. | V9: Объём отпуска ТЭ, Гкал | W9: Стоимость (без НДС) отпущенной ТЭ, руб. | X9: Объём отпуска ТЭ, Гкал | Y9: Стоимость (без НДС) отпущенной ТЭ, руб. | Z9: Объём отпуска ТЭ, Гкал | AA9: Стоимость (без НДС) отпущенной ТЭ, руб. | AB9: Объём отпуска ТЭ, Гкал | AC9: Стоимость (без НДС) отпущенной ТЭ, руб. | AD9: Объём отпуска ТЭ, Гкал | AE9: Стоимость (без НДС) отпущенной ТЭ, руб. | AF9: Объём отпуска ТЭ, Гкал | AG9: Стоимость (без НДС) отпущенной ТЭ, руб. | AH9: Объём отпуска ТЭ, Гкал | AI9: Стоимость (без НДС) отпущенной ТЭ, руб. | AJ9: Объём отпуска ТЭ, Гкал | AK9: Стоимость (без НДС) отпущенной ТЭ, руб. | AL9: Объём отпуска ТЭ, Гкал | AM9: Стоимость (без НДС) отпущенной ТЭ, руб. | AN9: Объём отпуска ТЭ, Гкал | AO9: Стоимость (без НДС) отпущенной ТЭ, руб. | AP9: Объём отпуска ТЭ, Гкал | AQ9: Стоимость (без НДС) отпущенной ТЭ, руб. | DG9: Объём отпуска ТЭ, Гкал | DH9: Стоимость (без НДС) отпущенной ТЭ, руб. | DI9: Объём отпуска ТЭ, Гкал | DJ9: Стоимость (без НДС) отпущенной ТЭ, руб. | DL9: ALLOW
I10: всего | J10: в том числе | M10: всего | N10: в том числе | DL10: FACT | DM10: =IF(OR(RPT_STATUS_JAN="Принят",RPT_STATUS_JAN="На рассмотрении"),"Y","") -> Y | DN10: =IF(OR(RPT_STATUS_FEB="Принят",RPT_STATUS_FEB="На рассмотрении"),"Y","") -> Y | DO10: =IF(OR(RPT_STATUS_MAR="Принят",RPT_STATUS_MAR="На рассмотрении"),"Y","") -> Y | DP10: =IF(OR(RPT_STATUS_APR="Принят",RPT_STATUS_APR="На рассмотрении"),"Y","") -> Y | DQ10: =IF(OR(RPT_STATUS_MAY="Принят",RPT_STATUS_MAY="На рассмотрении"),"Y","") -> Y | DR10: =IF(OR(RPT_STATUS_JUN="Принят",RPT_STATUS_JUN="На рассмотрении"),"Y","") -> Y | DS10: =IF(OR(RPT_STATUS_JUL="Принят",RPT_STATUS_JUL="На рассмотрении"),"Y","") -> Y | DT10: =IF(OR(RPT_STATUS_AUG="Принят",RPT_STATUS_AUG="На рассмотрении"),"Y","") -> Y | DU10: =IF(OR(RPT_STATUS_SEP="Принят",RPT_STATUS_SEP="На рассмотрении"),"Y","") -> Y | DV10: =IF(OR(RPT_STATUS_OCT="Принят",RPT_STATUS_OCT="На рассмотрении"),"Y","") ->  | DW10: =IF(OR(RPT_STATUS_NOV="Принят",RPT_STATUS_NOV="На рассмотрении"),"Y","") ->  | DX10: =IF(OR(RPT_STATUS_DEC="Принят",RPT_STATUS_DEC="На рассмотрении"),"Y","") -> 
J11: по приборам учёта | K11: расчётным методом | L11: перерасчёт | N11: по приборам учёта | O11: расчётным методом | P11: перерасчёт | DL11: RESULT | DM11: =IF(DM10="Y","OK",IF(DM8=DM10,"OK",IF(DM9="N","OK","ALARM"))) -> OK | DN11: =IF(DN10="Y","OK",IF(DN8=DN10,"OK",IF(DN9="N","OK","ALARM"))) -> OK | DO11: OK | DP11: OK | DQ11: OK | DR11: OK | DS11: OK | DT11: OK | DU11: OK | DV11: OK | DW11: OK | DX11: OK
D15: Отпуск в горячей воде | E15: I | F15: Отпуск ТЭ потребителям с коллекторов электростанций (котельных)
E16: 1 | F16: Прочие, промышленные и приравненные к ним потребители | I16: =J16+K16+L16 -> 0 | M16: =N16+O16+P16 -> 0
E17: 2 | F17: Население и исполнители коммунальных услуг, всего: | I17: =J17+K17+L17 -> 0 | J17: =SUM(J20:J21) -> 0 | K17: =SUM(K20:K21) -> 0 | L17: =SUM(L20:L21) -> 0 | M17: =N17+O17+P17 -> 0 | N17: =SUM(N20:N21) -> 0 | O17: =SUM(O20:O21) -> 0 | P17: =SUM(P20:P21) -> 0
E20: 2.1 | F20: - на нужды отопления | I20: =J20+K20+L20 -> 0 | M20: =N20+O20+P20 -> 0
E21: 2.2 | F21: - на нужды горячего водоснабжения | I21: =J21+K21+L21 -> 0 | M21: =N21+O21+P21 -> 0
E22: 3 | F22: Бюджетные организации | I22: =J22+K22+L22 -> 0 | M22: =N22+O22+P22 -> 0
E26: 4 | F26: Другие теплосетевые и теплоснабжающие организации | I26: =J26+K26+L26 -> 0 | M26: =N26+O26+P26 -> 0
E27: 5 | F27: На компенсацию потерь ТЭ при её передаче организациями, оказывающими услуги по передаче ТЭ | I27: =J27+K27+L27 -> 0 | M27: =N27+O27+P27 -> 0
E29: 6 | F29: Собственное производство энергоснабжающей организации | I29: =J29+K29+L29 -> 0 | M29: =N29+O29+P29 -> 0
E30: ПО.3 | F30: Полезный отпуск конечным потребителям | I30: =SUM(I16,I17,I22) -> 0 | J30: 0 | K30: 0 | L30: 0 | M30: 0 | N30: 0 | O30: 0 | P30: 0
E31: ПО.4 | F31: Полезный отпуск с учётом перепродажи | I31: =SUM(I16,I17,I22,I26) -> 0 | J31: 0 | K31: 0 | L31: 0 | M31: 0 | N31: 0 | O31: 0 | P31: 0
E32: ПО.5 | F32: Полезный отпуск | I32: =SUM(I16,I17,I22,I26,I27,I29) -> 0 | J32: 0 | K32: 0 | L32: 0 | M32: 0 | N32: 0 | O32: 0 | P32: 0
E33: II | F33: Отпуск произведенной (приобретённой) ТЭ потребителям через тепловую сеть
E34: 1 | F34: Прочие, промышленные и приравненные к ним потребители | I34: =J34+K34+L34 -> 593.206 | J34: 227.106 | K34: 366.1 | M34: =N34+O34+P34 -> 1341771.68 | N34: 519562.32 | O34: 822209.36
E35: 2 | F35: Население и исполнители коммунальных услуг, всего: | I35: =J35+K35+L35 -> 6711.075 | J35: =SUM(J38:J39) -> 562.819 | K35: =SUM(K38:K39) -> 6148.256 | L35: =SUM(L38:L39) -> 0 | M35: =N35+O35+P35 -> 15455847.23 | N35: =SUM(N38:N39) -> 1620078.36 | O35: =SUM(O38:O39) -> 13835768.87 | P35: =SUM(P38:P39) -> 0
E38: 2.1 | F38: - на нужды отопления | I38: =J38+K38+L38 -> 6104.589 | K38: 6104.589 | M38: =N38+O38+P38 -> 13710073.13 | O38: 13710073.13
E39: 2.2 | F39: - на нужды горячего водоснабжения | I39: =J39+K39+L39 -> 606.486 | J39: 562.819 | K39: 43.667 | M39: =N39+O39+P39 -> 1745774.1 | N39: 1620078.36 | O39: 125695.74
E40: 3 | F40: Бюджетные организации | I40: =J40+K40+L40 -> 1879.072 | J40: 878.614 | K40: 1000.458 | M40: =N40+O40+P40 -> 4311238.4 | N40: 2061616.49 | O40: 2249621.91
E44: 4 | F44: Другие теплосетевые и теплоснабжающие организации | I44: =J44+K44+L44 -> 0 | M44: =N44+O44+P44 -> 0
E45: 5 | F45: На компенсацию потерь ТЭ при её передаче организациями, оказывающими услуги по передаче ТЭ | I45: =J45+K45+L45 -> 0 | M45: =N45+O45+P45 -> 0
E47: 6 | F47: Собственное производство энергоснабжающей организации | I47: =J47+K47+L47 -> 140.164 | J47: 18.079 | K47: 122.085 | M47: =N47+O47+P47 -> 326225.41 | N47: 52039.59 | O47: 274185.82
E48: ПО.3 | F48: Полезный отпуск конечным потребителям | I48: =SUM(I34,I35,I40) -> 9183.353 | J48: =SUM(J34,J35,J40) -> 1668.539 | K48: =SUM(K34,K35,K40) -> 7514.814 | L48: 0 | M48: 21108857.31 | N48: 4201257.17 | O48: 16907600.14 | P48: 0
E49: ПО.4 | F49: Полезный отпуск с учётом перепродажи | I49: =SUM(I34,I35,I40,I44) -> 9183.353 | J49: =SUM(J34,J35,J40,J44) -> 1668.539 | K49: =SUM(K34,K35,K40,K44) -> 7514.814 | L49: 0 | M49: 21108857.31 | N49: 4201257.17 | O49: 16907600.14 | P49: 0
E50: ПО.5 | F50: Полезный отпуск | I50: =SUM(I34,I35,I40,I44,I45,I47) -> 9323.517 | J50: =SUM(J34,J35,J40,J44,J45,J47) -> 1686.618 | K50: =SUM(K34,K35,K40,K44,K45,K47) -> 7636.899 | L50: 0 | M50: 21435082.72 | N50: 4253296.76 | O50: 17181785.96 | P50: 0
E51: ПО | F51: Полезный отпуск - всего | I51: =SUM(I32,I50) -> 9323.517 | J51: 1686.618 | K51: 7636.899 | L51: 0 | M51: 21435082.72 | N51: 4253296.76 | O51: 17181785.96 | P51: 0 | T51: 18951.178 | U51: 41377032.64 | V51: 12200.474 | W51: 26755341.34 | X51: 11486.12 | Y51: 25315738.91 | Z51: 10313.63 | AA51: 22765449.04 | AB51: 9118.412 | AC51: 20159060.14 | AD51: 7027.006 | AE51: 15563735.94 | AF51: 7021.669 | AG51: 16206091.44 | AH51: 7119.413 | AI51: 16479756.05 | AJ51: 7446.23 | AK51: 17208247.63 | DG51: =SUMIF($T$9:$AQ$9,DG$9,$T51:$AQ51) -> 90684.132 | DH51: =SUMIF($T$9:$AQ$9,DH$9,$T51:$AQ51) -> 201830453.1 | DI51: =IF(MONTH_SEQUENCE=13,I51-L51,0) -> 0 | DJ51: =IF(MONTH_SEQUENCE=13,M51-P51,0) -> 0
D53: Отпуск в паре | E53: I | F53: Отпуск ТЭ потребителям с коллекторов электростанций (котельных)
E54: 1 | F54: Прочие, промышленные и приравненные к ним потребители | I54: =J54+K54+L54 -> 0 | M54: =N54+O54+P54 -> 0
E55: 2 | F55: Население и исполнители коммунальных услуг, всего: | I55: =J55+K55+L55 -> 0 | J55: =SUM(J58:J59) -> 0 | K55: =SUM(K58:K59) -> 0 | L55: =SUM(L58:L59) -> 0 | M55: =N55+O55+P55 -> 0 | N55: =SUM(N58:N59) -> 0 | O55: =SUM(O58:O59) -> 0 | P55: =SUM(P58:P59) -> 0
E58: 2.1 | F58: - на нужды отопления | I58: =J58+K58+L58 -> 0 | M58: =N58+O58+P58 -> 0
E59: 2.2 | F59: - на нужды горячего водоснабжения | I59: =J59+K59+L59 -> 0 | M59: =N59+O59+P59 -> 0
E60: 3 | F60: Бюджетные организации | I60: =J60+K60+L60 -> 24.758 | J60: 24.758 | M60: =N60+O60+P60 -> 71265.74 | N60: 71265.74
E64: 4 | F64: Другие теплосетевые и теплоснабжающие организации | I64: =J64+K64+L64 -> 0 | M64: =N64+O64+P64 -> 0
E65: 5 | F65: На компенсацию потерь ТЭ при её передаче организациями, оказывающими услуги по передаче ТЭ | I65: =J65+K65+L65 -> 0 | M65: =N65+O65+P65 -> 0
E67: 6 | F67: Собственное производство энергоснабжающей организации | I67: =J67+K67+L67 -> 7.205 | K67: 7.205 | M67: =N67+O67+P67 -> 20740.85 | O67: 20740.85
E68: ПО.3 | F68: Полезный отпуск конечным потребителям | I68: =SUM(I54,I55,I60) -> 24.758 | J68: 24.758 | K68: 0 | L68: 0 | M68: 71265.74 | N68: 71265.74 | O68: 0 | P68: 0
E69: ПО.4 | F69: Полезный отпуск с учётом перепродажи | I69: =SUM(I54,I55,I60,I64) -> 24.758 | J69: 24.758 | K69: 0 | L69: 0 | M69: 71265.74 | N69: 71265.74 | O69: 0 | P69: 0
E70: ПО.5 | F70: Полезный отпуск | I70: =SUM(I54,I55,I60,I64,I65,I67) -> 31.963 | J70: 24.758 | K70: 7.205 | L70: 0 | M70: 92006.59 | N70: 71265.74 | O70: 20740.85 | P70: 0
E71: II | F71: Отпуск произведенной (приобретённой) ТЭ потребителям через тепловую сеть
E72: 1 | F72: Прочие, промышленные и приравненные к ним потребители | I72: =J72+K72+L72 -> 0 | M72: =N72+O72+P72 -> 0
E73: 2 | F73: Население и исполнители коммунальных услуг, всего: | I73: =J73+K73+L73 -> 0 | J73: =SUM(J76:J77) -> 0 | K73: =SUM(K76:K77) -> 0 | L73: =SUM(L76:L77) -> 0 | M73: =N73+O73+P73 -> 0 | N73: =SUM(N76:N77) -> 0 | O73: =SUM(O76:O77) -> 0 | P73: =SUM(P76:P77) -> 0
E76: 2.1 | F76: - на нужды отопления | I76: =J76+K76+L76 -> 0 | M76: =N76+O76+P76 -> 0
E77: 2.2 | F77: - на нужды горячего водоснабжения | I77: =J77+K77+L77 -> 0 | M77: =N77+O77+P77 -> 0
E78: 3 | F78: Бюджетные организации | I78: =J78+K78+L78 -> 0 | M78: =N78+O78+P78 -> 0
E82: 4 | F82: Другие теплосетевые и теплоснабжающие организации | I82: =J82+K82+L82 -> 0 | M82: =N82+O82+P82 -> 0
E83: 5 | F83: На компенсацию потерь ТЭ при её передаче организациями, оказывающими услуги по передаче ТЭ | I83: =J83+K83+L83 -> 0 | M83: =N83+O83+P83 -> 0
E85: 6 | F85: Собственное производство энергоснабжающей организации | I85: =J85+K85+L85 -> 0 | M85: =N85+O85+P85 -> 0
E86: ПО.3 | F86: Полезный отпуск конечным потребителям | I86: =SUM(I72,I73,I78) -> 0 | J86: =SUM(J72,J73,J78) -> 0 | K86: =SUM(K72,K73,K78) -> 0 | L86: 0 | M86: 0 | N86: 0 | O86: 0 | P86: 0
E87: ПО.4 | F87: Полезный отпуск с учётом перепродажи | I87: =SUM(I72,I73,I78,I82) -> 0 | J87: =SUM(J72,J73,J78,J82) -> 0 | K87: =SUM(K72,K73,K78,K82) -> 0 | L87: 0 | M87: 0 | N87: 0 | O87: 0 | P87: 0
E88: ПО.5 | F88: Полезный отпуск | I88: =SUM(I72,I73,I78,I82,I83,I85) -> 0 | J88: =SUM(J72,J73,J78,J82,J83,J85) -> 0 | K88: =SUM(K72,K73,K78,K82,K83,K85) -> 0 | L88: 0 | M88: 0 | N88: 0 | O88: 0 | P88: 0
E89: ПО | F89: Полезный отпуск - всего | I89: =SUM(I70,I88) -> 31.963 | J89: 24.758 | K89: 7.205 | L89: 0 | M89: 92006.59 | N89: 71265.74 | O89: 20740.85 | P89: 0 | T89: 31.89 | U89: 88129.28 | V89: 31.89 | W89: 88129.28 | X89: 31.89 | Y89: 88129.28 | Z89: 31.89 | AA89: 88129.28 | AB89: 31.89 | AC89: 88129.28 | AD89: 28.295 | AE89: 78195.88 | AF89: 22.96 | AG89: 66091.78 | AH89: 31.963 | AI89: 92006.59 | AJ89: 31.963 | AK89: 92006.59 | DG89: =SUMIF($T$9:$AQ$9,DG$9,$T89:$AQ89) -> 274.631 | DH89: =SUMIF($T$9:$AQ$9,DH$9,$T89:$AQ89) -> 768947.24 | DI89: =IF(MONTH_SEQUENCE=13,I89-L89,0) -> 0 | DJ89: =IF(MONTH_SEQUENCE=13,M89-P89,0) -> 0
D91: Отпуск в горячей воде и в паре
E92: 1 | F92: Прочие, промышленные и приравненные к ним потребители | I92: =SUM(I16,I34,I54,I72) -> 593.206 | J92: =SUM(J16,J34,J54,J72) -> 227.106 | K92: 366.1 | L92: 0 | M92: 1341771.68 | N92: 519562.32 | O92: 822209.36 | P92: 0
E93: 2 | F93: Население и исполнители коммунальных услуг, всего: | I93: =SUM(I17,I35,I55,I73) -> 6711.075 | J93: 562.819 | K93: 6148.256 | L93: 0 | M93: 15455847.23 | N93: 1620078.36 | O93: 13835768.87 | P93: 0
E96: 2.1 | F96: - на нужды отопления | I96: =SUM(I20,I38,I58,I76) -> 6104.589 | J96: 0 | K96: 6104.589 | L96: 0 | M96: 13710073.13 | N96: 0 | O96: 13710073.13 | P96: 0
E97: 2.2 | F97: - на нужды горячего водоснабжения | I97: =SUM(I21,I39,I59,I77) -> 606.486 | J97: 562.819 | K97: 43.667 | L97: 0 | M97: 1745774.1 | N97: 1620078.36 | O97: 125695.74 | P97: 0
E98: 3 | F98: Бюджетные организации | I98: =SUM(I22,I40,I60,I78) -> 1903.83 | J98: 903.372 | K98: 1000.458 | L98: 0 | M98: 4382504.14 | N98: 2132882.23 | O98: 2249621.91 | P98: 0
E102: 4 | F102: Другие теплосетевые и теплоснабжающие организации | I102: =SUM(I26,I44,I64,I82) -> 0 | J102: 0 | K102: 0 | L102: 0 | M102: 0 | N102: 0 | O102: 0 | P102: 0
E103: 5 | F103: На компенсацию потерь ТЭ при её передаче организациями, оказывающими услуги по передаче ТЭ | I103: =SUM(I27,I45,I65,I83) -> 0 | J103: 0 | K103: 0 | L103: 0 | M103: 0 | N103: 0 | O103: 0 | P103: 0
E105: 6 | F105: Собственное производство энергоснабжающей организации | I105: =SUM(I29,I47,I67,I85) -> 147.369 | J105: 18.079 | K105: 129.29 | L105: 0 | M105: 346966.26 | N105: 52039.59 | O105: 294926.67 | P105: 0
E106: ПО.3 | F106: Полезный отпуск конечным потребителям | I106: =SUM(I30,I48,I68,I86) -> 9208.111 | J106: 1693.297 | K106: 7514.814 | L106: 0 | M106: 21180123.05 | N106: 4272522.91 | O106: 16907600.14 | P106: 0
E107: ПО.4 | F107: Полезный отпуск с учётом перепродажи | I107: =SUM(I31,I49,I69,I87) -> 9208.111 | J107: 1693.297 | K107: 7514.814 | L107: 0 | M107: 21180123.05 | N107: 4272522.91 | O107: 16907600.14 | P107: 0
E108: ПО.5 | F108: Полезный отпуск | I108: =SUM(I32,I50,I70,I88) -> 9355.48 | J108: 1711.376 | K108: 7644.104 | L108: 0 | M108: 21527089.31 | N108: 4324562.5 | O108: 17202526.81 | P108: 0
F128: Общий полезный отпуск конечным потребителям (в горячей воде и паре) | I128: =SUM(I30,I48,I68,I86) -> 9208.111 | J128: 1693.297 | K128: 7514.814 | L128: 0 | M128: 21180123.05 | N128: 4272522.91 | O128: 16907600.14 | P128: 0
F129: Общий полезный отпуск с учётом перепродажи (в горячей воде и паре) | I129: 9208.111 | J129: 1693.297 | K129: 7514.814 | L129: 0 | M129: 21180123.05 | N129: 4272522.91 | O129: 16907600.14 | P129: 0
F130: Общий полезный отпуск (в горячей воде и паре) | I130: =SUM(I51,I89) -> 9355.48 | J130: 1711.376 | K130: 7644.104 | L130: 0 | M130: 21527089.31 | N130: 4324562.5 | O130: 17202526.81 | P130: 0 | T130: =SUM(T51,T89) -> 18983.068 | U130: 41465161.92 | V130: 12232.364 | W130: 26843470.62 | X130: 11518.01 | Y130: 25403868.19 | Z130: 10345.52 | AA130: 22853578.32 | AB130: =SUM(AB51,AB89) -> 9150.302 | AC130: 20247189.42 | AD130: 7055.301 | AE130: 15641931.82 | AF130: 7044.629 | AG130: 16272183.22 | AH130: 7151.376 | AI130: 16571762.64 | AJ130: =SUM(AJ51,AJ89) -> 7478.193 | AK130: 17300254.22 | AL130: 0 | AM130: 0 | AN130: 0 | AO130: 0 | AP130: 0 | AQ130: 0
F135: Руководитель организации | I135: =IF(Титульный!H44="","Не определено",Титульный!H44) -> Фарафонов Вадим Викторович
I136: (Ф.И.О.) | P136: (подпись)
F138: Должностное лицо,
F139: ответственное за предоставление статистической информации | I139: =IF(Титульный!H51="","Не определено",Титульный!H51) -> главный экономист | M139: =IF(Титульный!H50="","Не определено",Титульный!H50) -> Конюхов Михаил Валентинович
F140: (лицо, уполномоченное предоставлять статистическую информацию | I140: (должность) | M140: (Ф.И.О.) | P140: (подпись)
F141: от имени юридического лица или от имени гражданина,
F142: осуществляющего предпринимательскую деятельность | I142: =IF(Титульный!H52="","Не определено",Титульный!H52) -> 8 831 61 93325 | O142: «____» _________20__ год
F143: без образования юридического лица) | I143: (номер контактного телефона) | M143: (email) | O143: (дата составления документа)

Sheet Комментарии
F9: Ниже вы можете оставить свои комментарии

Sheet Проверка
E9: Результаты проверки
E11: Ссылка 1 | F11: Ссылка 2 | G11: Описание причины | H11: Обязательность выполнения
E12: Титульный!H60 | G12: Необходимо указать значение! | H12: Ошибка
E13: Отпуск ТЭ!I128 | F13: Отпуск ТЭ!M128 | G13: Расчётная цена тепловой энергии в периоде "Октябрь" для конечных потребителей составляет ~ 2300,16 руб./Гкал | H13: Предупреждение
E14: Отпуск ТЭ!I129 | F14: Отпуск ТЭ!M129 | G14: Расчётная цена тепловой энергии в периоде "Октябрь" для конечных потребителей с учётом перепродажи составляет ~ 2300,16 руб./Гкал | H14: Предупреждение
E15: Отпуск ТЭ!I130 | F15: Отпуск ТЭ!M130 | G15: Расчётная цена тепловой энергии в периоде "Октябрь" составляет ~ 2301,01 руб./Гкал | H15: Предупреждение

Sheet modVLDIntegrityProv (hidden)
I13: RECOVERY_AREA
I16: =J16+K16+L16 -> 0 | M16: =N16+O16+P16 -> 0
I17: =J17+K17+L17 -> 0 | J17: =SUM(J20:J21) -> 0 | K17: =SUM(K20:K21) -> 0 | L17: =SUM(L20:L21) -> 0 | M17: =N17+O17+P17 -> 0 | N17: =SUM(N20:N21) -> 0 | O17: =SUM(O20:O21) -> 0 | P17: =SUM(P20:P21) -> 0
I20: =J20+K20+L20 -> 0 | M20: =N20+O20+P20 -> 0
I21: =J21+K21+L21 -> 0 | M21: =N21+O21+P21 -> 0
I22: =J22+K22+L22 -> 0 | M22: =N22+O22+P22 -> 0
I26: =J26+K26+L26 -> 0 | M26: =N26+O26+P26 -> 0
I27: =J27+K27+L27 -> 0 | M27: =N27+O27+P27 -> 0
I29: =J29+K29+L29 -> 0 | M29: =N29+O29+P29 -> 0
I30: =SUM(I16,I17,I22) -> 0 | J30: 0 | K30: 0 | L30: 0 | M30: 0 | N30: 0 | O30: 0 | P30: 0
I31: =SUM(I16,I17,I22,I26) -> 0 | J31: 0 | K31: 0 | L31: 0 | M31: 0 | N31: 0 | O31: 0 | P31: 0
I32: =SUM(I16,I17,I22,I26,I27,I29) -> 0 | J32: 0 | K32: 0 | L32: 0 | M32: 0 | N32: 0 | O32: 0 | P32: 0
I34: =J34+K34+L34 -> 0 | M34: =N34+O34+P34 -> 0
I35: =J35+K35+L35 -> 0 | J35: =SUM(J38:J39) -> 0 | K35: =SUM(K38:K39) -> 0 | L35: =SUM(L38:L39) -> 0 | M35: =N35+O35+P35 -> 0 | N35: =SUM(N38:N39) -> 0 | O35: =SUM(O38:O39) -> 0 | P35: =SUM(P38:P39) -> 0
I38: =J38+K38+L38 -> 0 | M38: =N38+O38+P38 -> 0
I39: =J39+K39+L39 -> 0 | M39: =N39+O39+P39 -> 0
I40: =J40+K40+L40 -> 0 | M40: =N40+O40+P40 -> 0
I44: =J44+K44+L44 -> 0 | M44: =N44+O44+P44 -> 0
I45: =J45+K45+L45 -> 0 | M45: =N45+O45+P45 -> 0
I47: =J47+K47+L47 -> 0 | M47: =N47+O47+P47 -> 0
I48: =SUM(I34,I35,I40) -> 0 | J48: =SUM(J34,J35,J40) -> 0 | K48: =SUM(K34,K35,K40) -> 0 | L48: 0 | M48: 0 | N48: 0 | O48: 0 | P48: 0
I49: =SUM(I34,I35,I40,I44) -> 0 | J49: =SUM(J34,J35,J40,J44) -> 0 | K49: =SUM(K34,K35,K40,K44) -> 0 | L49: 0 | M49: 0 | N49: 0 | O49: 0 | P49: 0
I50: =SUM(I34,I35,I40,I44,I45,I47) -> 0 | J50: =SUM(J34,J35,J40,J44,J45,J47) -> 0 | K50: =SUM(K34,K35,K40,K44,K45,K47) -> 0 | L50: 0 | M50: 0 | N50: 0 | O50: 0 | P50: 0
I51: =SUM(I32,I50) -> 0 | J51: 0 | K51: 0 | L51: 0 | M51: 0 | N51: 0 | O51: 0 | P51: 0
I54: =J54+K54+L54 -> 0 | M54: =N54+O54+P54 -> 0
I55: =J55+K55+L55 -> 0 | J55: =SUM(J58:J59) -> 0 | K55: =SUM(K58:K59) -> 0 | L55: =SUM(L58:L59) -> 0 | M55: =N55+O55+P55 -> 0 | N55: =SUM(N58:N59) -> 0 | O55: =SUM(O58:O59) -> 0 | P55: =SUM(P58:P59) -> 0
I58: =J58+K58+L58 -> 0 | M58: =N58+O58+P58 -> 0
I59: =J59+K59+L59 -> 0 | M59: =N59+O59+P59 -> 0
I60: =J60+K60+L60 -> 0 | M60: =N60+O60+P60 -> 0
I64: =J64+K64+L64 -> 0 | M64: =N64+O64+P64 -> 0
I65: =J65+K65+L65 -> 0 | M65: =N65+O65+P65 -> 0
I67: =J67+K67+L67 -> 0 | M67: =N67+O67+P67 -> 0
I68: =SUM(I54,I55,I60) -> 0 | J68: 0 | K68: 0 | L68: 0 | M68: 0 | N68: 0 | O68: 0 | P68: 0
I69: =SUM(I54,I55,I60,I64) -> 0 | J69: 0 | K69: 0 | L69: 0 | M69: 0 | N69: 0 | O69: 0 | P69: 0
I70: =SUM(I54,I55,I60,I64,I65,I67) -> 0 | J70: 0 | K70: 0 | L70: 0 | M70: 0 | N70: 0 | O70: 0 | P70: 0
I72: =J72+K72+L72 -> 0 | M72: =N72+O72+P72 -> 0
I73: =J73+K73+L73 -> 0 | J73: =SUM(J76:J77) -> 0 | K73: =SUM(K76:K77) -> 0 | L73: =SUM(L76:L77) -> 0 | M73: =N73+O73+P73 -> 0 | N73: =SUM(N76:N77) -> 0 | O73: =SUM(O76:O77) -> 0 | P73: =SUM(P76:P77) -> 0
I76: =J76+K76+L76 -> 0 | M76: =N76+O76+P76 -> 0
I77: =J77+K77+L77 -> 0 | M77: =N77+O77+P77 -> 0
I78: =J78+K78+L78 -> 0 | M78: =N78+O78+P78 -> 0
I82: =J82+K82+L82 -> 0 | M82: =N82+O82+P82 -> 0
I83: =J83+K83+L83 -> 0 | M83: =N83+O83+P83 -> 0
I85: =J85+K85+L85 -> 0 | M85: =N85+O85+P85 -> 0
I86: =SUM(I72,I73,I78) -> 0 | J86: =SUM(J72,J73,J78) -> 0 | K86: =SUM(K72,K73,K78) -> 0 | L86: 0 | M86: 0 | N86: 0 | O86: 0 | P86: 0
I87: =SUM(I72,I73,I78,I82) -> 0 | J87: =SUM(J72,J73,J78,J82) -> 0 | K87: =SUM(K72,K73,K78,K82) -> 0 | L87: 0 | M87: 0 | N87: 0 | O87: 0 | P87: 0
I88: =SUM(I72,I73,I78,I82,I83,I85) -> 0 | J88: =SUM(J72,J73,J78,J82,J83,J85) -> 0 | K88: =SUM(K72,K73,K78,K82,K83,K85) -> 0 | L88: 0 | M88: 0 | N88: 0 | O88: 0 | P88: 0
I89: =SUM(I70,I88) -> 0 | J89: 0 | K89: 0 | L89: 0 | M89: 0 | N89: 0 | O89: 0 | P89: 0
I92: =SUM(I16,I34,I54,I72) -> 0 | J92: =SUM(J16,J34,J54,J72) -> 0 | K92: 0 | L92: 0 | M92: 0 | N92: 0 | O92: 0 | P92: 0
I93: =SUM(I17,I35,I55,I73) -> 0 | J93: 0 | K93: 0 | L93: 0 | M93: 0 | N93: 0 | O93: 0 | P93: 0
I96: =SUM(I20,I38,I58,I76) -> 0 | J96: 0 | K96: 0 | L96: 0 | M96: 0 | N96: 0 | O96: 0 | P96: 0
I97: 0 | J97: 0 | K97: 0 | L97: 0 | M97: 0 | N97: 0 | O97: 0 | P97: 0
I98: 0 | J98: 0 | K98: 0 | L98: 0 | M98: 0 | N98: 0 | O98: 0 | P98: 0
I102: =SUM(I26,I44,I64,I82) -> 0 | J102: 0 | K102: 0 | L102: 0 | M102: 0 | N102: 0 | O102: 0 | P102: 0
I103: 0 | J103: 0 | K103: 0 | L103: 0 | M103: 0 | N103: 0 | O103: 0 | P103: 0
I105: =SUM(I29,I47,I67,I85) -> 0 | J105: 0 | K105: 0 | L105: 0 | M105: 0 | N105: 0 | O105: 0 | P105: 0
I106: 0 | J106: 0 | K106: 0 | L106: 0 | M106: 0 | N106: 0 | O106: 0 | P106: 0
I107: 0 | J107: 0 | K107: 0 | L107: 0 | M107: 0 | N107: 0 | O107: 0 | P107: 0
I108: 0 | J108: 0 | K108: 0 | L108: 0 | M108: 0 | N108: 0 | O108: 0 | P108: 0
I128: =SUM(I30,I48,I68,I86) -> 0 | J128: 0 | K128: 0 | L128: 0 | M128: 0 | N128: 0 | O128: 0 | P128: 0
I129: 0 | J129: 0 | K129: 0 | L129: 0 | M129: 0 | N129: 0 | O129: 0 | P129: 0
I130: =SUM(I51,I89) -> 0 | J130: 0 | K130: 0 | L130: 0 | M130: 0 | N130: 0 | O130: 0 | P130: 0

Sheet modRequestSpecificData (hidden)

Sheet modRequestReestrData (hidden)

Sheet modfrmReportMode (hidden)

Sheet modSheetTitle (hidden)

Sheet modfrmRegion (hidden)

Sheet modfrmReestr (hidden)

Sheet modUpdTemplMain (hidden)

Sheet modfrmCheckUpdates (hidden)

Sheet modIHLCommandBar (hidden)
